Workbook

Sheet معلومات
C1: الجمهورية الجزائرية الديمقراطية الشعبية
C2: وزارة التربية الوطنية
C3: مديرية التربية لولاية الوادي
B4: اسم المؤسسة | C4: ثانوية الوادي
B5: الولاية | C5: الوادي
B6: البلدية | C6: الوادي
B7: السنة الدراسية | C7: 2021 - 2022

Sheet البطاقات
A1: 111 | G1: =MAX(القائمة!$B:$B) -> 684 | AF1: =BH9+1 -> 2 | BJ1: نصف داخلي
AC2: =AE2 -> 0 | BJ2: ="بطاقـــة "&IF(BJ1="نصف داخلي","المــطــعـــم",IF(BJ1="خارجي","المكتبــة")) -> بطاقـــة المــطــعـــم
A3: =معلومات!C1 -> الجمهورية الجزائرية الديمقراطية الشعبية | AC3: =IF($AC$2="طباعة","طباعة","") ->  | AF3: =معلومات!C1 -> الجمهورية الجزائرية الديمقراطية الشعبية
O4: =معلومات!C2 -> وزارة التربية الوطنية | AC4: =IF($AC$2="طباعة","طباعة","") ->  | AF4: =معلومات!C2 -> وزارة التربية الوطنية
A5: =معلومات!C3 -> مديرية التربية لولاية الوادي | AF5: =معلومات!C3 -> مديرية التربية لولاية الوادي
B6: 19 | E6: =معلومات!$C$4&" - "&معلومات!$C$6 -> ثانوية الوادي - الوادي | AJ6: =معلومات!$C$4&" - "&معلومات!$C$6 -> ثانوية الوادي - الوادي | BJ6: خارجي
E7: =معلومات!B7&": "&معلومات!C7 -> السنة الدراسية: 2021 - 2022 | V7: =IFERROR(VLOOKUP(BH9,OFFSET(sadokH2020,,1),6,FALSE),"") -> أنثى | AJ7: =معلومات!B7&": "&معلومات!C7 -> السنة الدراسية: 2021 - 2022 | BA7: =IFERROR(VLOOKUP(AF1,OFFSET(sadokH2020,,1),6,FALSE),"") -> أنثى | BJ7: نصف داخلي
BH9: 1
U10: الصــورة | AZ10: الصــورة
C12: التلميـــــــذ(ة): | H12: =IFERROR(VLOOKUP(BH9,OFFSET(sadokH2020,,1),7,FALSE)&" "&VLOOKUP(BH9,OFFSET(sadokH2020,,1),8,FALSE),"") -> مصطفى محمود1 | AH12: التلميـــــــذ(ة): | AM12: =IFERROR(VLOOKUP(AF1,OFFSET(sadokH2020,,1),7,FALSE)&" "&VLOOKUP(AF1,OFFSET(sadokH2020,,1),8,FALSE),"") -> مصطفى محمود2 | BI12: من | BJ12: إلى
BI13: 20 | BJ13: 30
C14: تاريـخ الميلاد: | H14: =IFERROR(VLOOKUP(BH9,OFFSET(sadokH2020,,1),9,FALSE),"") -> 2004-07-13 | AH14: تاريـخ الميلاد: | AM14: =IFERROR(VLOOKUP(AF1,OFFSET(sadokH2020,,1),9,FALSE),"") -> 2003-08-12
C16: القســــــــــــم: | H16: =IFERROR(VLOOKUP(BH9,OFFSET(sadokH2020,,1),3,FALSE),"") -> 3هط1 | AH16: القســــــــــــم: | AM16: =IFERROR(VLOOKUP(AF1,OFFSET(sadokH2020,,1),3,FALSE),"") -> 3هط1 | BI16: =MIN(القائمة!C:C) -> 1 | BJ16: أصغر قيمة لرقم الجلوس
BI17: =MAX(القائمة!C:C) -> 701 | BJ17: أكبر قيمة لرقم الجلوس
C18: رقـم التسجيـل: | H18: =IFERROR(VLOOKUP(BH9,OFFSET(sadokH2020,,1),2,FALSE),"") -> 1 | AH18: رقـم التسجيـل: | AM18: =IFERROR(VLOOKUP(AF1,OFFSET(sadokH2020,,1),2,FALSE),"") -> 2
A20: =AF1+1 -> 3 | AB20: =IFERROR(VLOOKUP(A1,OFFSET(sadokH2020,,1),1,FALSE),"") -> 111 | AF20: =A20+1 -> 4 | BI20: =IFERROR(VLOOKUP(AF1,OFFSET(sadokH2020,,1),1,FALSE),"") -> 2
AC21: =AE21 -> 0
A22: =معلومات!C1 -> الجمهورية الجزائرية الديمقراطية الشعبية | AC22: =IF($AC$21="طباعة","طباعة","") ->  | AT22: =معلومات!C1 -> الجمهورية الجزائرية الديمقراطية الشعبية
A23: =معلومات!C2 -> وزارة التربية الوطنية | AC23: =IF($AC$21="طباعة","طباعة","") ->  | AT23: =معلومات!C2 -> وزارة التربية الوطنية | BJ23: أنثى
A24: =معلومات!C3 -> مديرية التربية لولاية الوادي | AT24: =معلومات!C3 -> مديرية التربية لولاية الوادي
E25: =معلومات!$C$4&" - "&معلومات!$C$6 -> ثانوية الوادي - الوادي | AJ25: =معلومات!$C$4&" - "&معلومات!$C$6 -> ثانوية الوادي - الوادي
E26: =معلومات!B7&": "&معلومات!C7 -> السنة الدراسية: 2021 - 2022 | V26: =IFERROR(VLOOKUP(A20,OFFSET(sadokH2020,,1),6,FALSE),"") -> أنثى | AJ26: =معلومات!B7&": "&معلومات!C7 -> السنة الدراسية: 2021 - 2022 | BA26: =IFERROR(VLOOKUP(AF20,OFFSET(sadokH2020,,1),6,FALSE),"") -> أنثى
U29: الصــورة | AZ29: الصــورة
C31: التلميـــــــذ(ة): | H31: =IFERROR(VLOOKUP(A20,OFFSET(sadokH2020,,1),7,FALSE)&" "&VLOOKUP(A20,OFFSET(sadokH2020,,1),8,FALSE),"") -> مصطفى محمود4 | AH31: التلميـــــــذ(ة): | AM31: =IFERROR(VLOOKUP(AF20,OFFSET(sadokH2020,,1),7,FALSE)&" "&VLOOKUP(AF20,OFFSET(sadokH2020,,1),8,FALSE),"") -> مصطفى محمود5
C33: تاريـخ الميلاد: | H33: =IFERROR(VLOOKUP(A20,OFFSET(sadokH2020,,1),9,FALSE),"") -> 2004-05-07 | AH33: تاريـخ الميلاد: | AM33: =IFERROR(VLOOKUP(AF20,OFFSET(sadokH2020,,1),9,FALSE),"") -> 2004-03-02
C35: القســــــــــــم: | H35: =IFERROR(VLOOKUP(A20,OFFSET(sadokH2020,,1),3,FALSE),"") -> 3هط1 | AH35: القســــــــــــم: | AM35: =IFERROR(VLOOKUP(AF20,OFFSET(sadokH2020,,1),3,FALSE),"") -> 3هط1
C37: رقـم التسجيـل: | H37: =IFERROR(VLOOKUP(A20,OFFSET(sadokH2020,,1),2,FALSE),"") -> 4 | AH37: رقـم التسجيـل: | AM37: =IFERROR(VLOOKUP(AF20,OFFSET(sadokH2020,,1),2,FALSE),"") -> 5
A39: =AF20+1 -> 5 | AB39: =IFERROR(VLOOKUP(A20,OFFSET(sadokH2020,,1),1,FALSE),"") -> 3 | AF39: =A39+1 -> 6 | BH39: =IFERROR(VLOOKUP(AF20,OFFSET(sadokH2020,,1),1,FALSE),"") -> 4
AC40: =AE40 -> 0
A41: =معلومات!C1 -> الجمهورية الجزائرية الديمقراطية الشعبية | AC41: =IF($AC$40="طباعة","طباعة","") ->  | AS41: =معلومات!C1 -> الجمهورية الجزائرية الديمقراطية الشعبية
A42: =معلومات!C2 -> وزارة التربية الوطنية | AC42: =IF($AC$40="طباعة","طباعة","") ->  | AS42: =معلومات!C2 -> وزارة التربية الوطنية
A43: =معلومات!C3 -> مديرية التربية لولاية الوادي | AS43: =معلومات!C3 -> مديرية التربية لولاية الوادي
E44: =معلومات!$C$4&" - "&معلومات!$C$6 -> ثانوية الوادي - الوادي | AJ44: =معلومات!$C$4&" - "&معلومات!$C$6 -> ثانوية الوادي - الوادي
E45: =معلومات!B7&": "&معلومات!C7 -> السنة الدراسية: 2021 - 2022 | V45: =IFERROR(VLOOKUP(A39,OFFSET(sadokH2020,,1),6,FALSE),"") -> أنثى | AJ45: =معلومات!B7&": "&معلومات!C7 -> السنة الدراسية: 2021 - 2022 | BA45: =IFERROR(VLOOKUP(AF39,OFFSET(sadokH2020,,1),6,FALSE),"") -> ذكر
U48: الصــورة | AZ48: الصــورة
C50: التلميـــــــذ(ة): | H50: =IFERROR(VLOOKUP(A39,OFFSET(sadokH2020,,1),7,FALSE)&" "&VLOOKUP(A39,OFFSET(sadokH2020,,1),8,FALSE),"") -> مصطفى محمود6 | AH50: التلميـــــــذ(ة): | AM50: =IFERROR(VLOOKUP(AF39,OFFSET(sadokH2020,,1),7,FALSE)&" "&VLOOKUP(AF39,OFFSET(sadokH2020,,1),8,FALSE),"") -> مصطفى محمود7
C52: تاريـخ الميلاد: | H52: =IFERROR(VLOOKUP(A39,OFFSET(sadokH2020,,1),9,FALSE),"") -> 2004-08-21 | AH52: تاريـخ الميلاد: | AM52: =IFERROR(VLOOKUP(AF39,OFFSET(sadokH2020,,1),9,FALSE),"") -> 2003-01-01
C54: القســــــــــــم: | H54: =IFERROR(VLOOKUP(A39,OFFSET(sadokH2020,,1),3,FALSE),"") -> 3هط2 | AH54: القســــــــــــم: | AM54: =IFERROR(VLOOKUP(AF39,OFFSET(sadokH2020,,1),3,FALSE),"") -> 3هط1
C56: رقـم التسجيـل: | H56: =IFERROR(VLOOKUP(A39,OFFSET(sadokH2020,,1),2,FALSE),"") -> 6 | AH56: رقـم التسجيـل: | AM56: =IFERROR(VLOOKUP(AF39,OFFSET(sadokH2020,,1),2,FALSE),"") -> 7
A58: =AF39+1 -> 7 | AB58: =IFERROR(VLOOKUP(A39,OFFSET(sadokH2020,,1),1,FALSE),"") -> 5 | AF58: =A58+1 -> 8 | BH58: =IFERROR(VLOOKUP(AF39,OFFSET(sadokH2020,,1),1,FALSE),"") -> 6
AC59: =AE59 -> 0
A60: =معلومات!C1 -> الجمهورية الجزائرية الديمقراطية الشعبية | AC60: =IF($AC$59="طباعة","طباعة","") ->  | AT60: =معلومات!C1 -> الجمهورية الجزائرية الديمقراطية الشعبية
A61: =معلومات!C2 -> وزارة التربية الوطنية | AC61: =IF($AC$59="طباعة","طباعة","") ->  | AT61: =معلومات!C2 -> وزارة التربية الوطنية
A62: =معلومات!C3 -> مديرية التربية لولاية الوادي | AT62: =معلومات!C3 -> مديرية التربية لولاية الوادي
E63: =معلومات!$C$4&" - "&معلومات!$C$6 -> ثانوية الوادي - الوادي | AJ63: =معلومات!$C$4&" - "&معلومات!$C$6 -> ثانوية الوادي - الوادي
E64: =معلومات!B7&": "&معلومات!C7 -> السنة الدراسية: 2021 - 2022 | V64: =IFERROR(VLOOKUP(A58,OFFSET(sadokH2020,,1),6,FALSE),"") -> أنثى | AJ64: =معلومات!B7&": "&معلومات!C7 -> السنة الدراسية: 2021 - 2022 | BA64: =IFERROR(VLOOKUP(AF58,OFFSET(sadokH2020,,1),6,FALSE),"") -> ذكر
U67: الصــورة | AZ67: الصــورة
C69: التلميـــــــذ(ة): | H69: =IFERROR(VLOOKUP(A58,OFFSET(sadokH2020,,1),7,FALSE)&" "&VLOOKUP(A58,OFFSET(sadokH2020,,1),8,FALSE),"") -> مصطفى محمود8 | AH69: التلميـــــــذ(ة): | AM69: =IFERROR(VLOOKUP(AF58,OFFSET(sadokH2020,,1),7,FALSE)&" "&VLOOKUP(AF58,OFFSET(sadokH2020,,1),8,FALSE),"") -> مصطفى محمود9
C71: تاريـخ الميلاد: | H71: =IFERROR(VLOOKUP(A58,OFFSET(sadokH2020,,1),9,FALSE),"") -> 2004-10-18 | AH71: تاريـخ الميلاد: | AM71: =IFERROR(VLOOKUP(AF58,OFFSET(sadokH2020,,1),9,FALSE),"") -> 2005-01-29
C73: القســــــــــــم: | H73: =IFERROR(VLOOKUP(A58,OFFSET(sadokH2020,,1),3,FALSE),"") -> 3هط1 | AH73: القســــــــــــم: | AM73: =IFERROR(VLOOKUP(AF58,OFFSET(sadokH2020,,1),3,FALSE),"") -> 3هط1
C75: رقـم التسجيـل: | H75: =IFERROR(VLOOKUP(A58,OFFSET(sadokH2020,,1),2,FALSE),"") -> 8 | AH75: رقـم التسجيـل: | AM75: =IFERROR(VLOOKUP(AF58,OFFSET(sadokH2020,,1),2,FALSE),"") -> 9
A77: =AF58+1 -> 9 | AB77: =IFERROR(VLOOKUP(A58,OFFSET(sadokH2020,,1),1,FALSE),"") -> 7 | AF77: =A77+1 -> 10 | BH77: =IFERROR(VLOOKUP(AF58,OFFSET(sadokH2020,,1),1,FALSE),"") -> 8
AC78: =AE78 -> 0
A79: =معلومات!C1 -> الجمهورية الجزائرية الديمقراطية الشعبية | AC79: =IF($AC$78="طباعة","طباعة","") ->  | AT79: =معلومات!C1 -> الجمهورية الجزائرية الديمقراطية الشعبية
A80: =معلومات!C2 -> وزارة التربية الوطنية | AC80: =IF($AC$78="طباعة","طباعة","") ->  | AT80: =معلومات!C2 -> وزارة التربية الوطنية
A81: =معلومات!C3 -> مديرية التربية لولاية الوادي | AT81: =معلومات!C3 -> مديرية التربية لولاية الوادي
E82: =معلومات!$C$4&" - "&معلومات!$C$6 -> ثانوية الوادي - الوادي | AJ82: =معلومات!$C$4&" - "&معلومات!$C$6 -> ثانوية الوادي - الوادي
E83: =معلومات!B7&": "&معلومات!C7 -> السنة الدراسية: 2021 - 2022 | V83: =IFERROR(VLOOKUP(A77,OFFSET(sadokH2020,,1),6,FALSE),"") -> ذكر | AJ83: =معلومات!B7&": "&معلومات!C7 -> السنة الدراسية: 2021 - 2022 | BA83: =IFERROR(VLOOKUP(AF77,OFFSET(sadokH2020,,1),6,FALSE),"") -> أنثى
U86: الصــورة | AZ86: الصــورة
C88: التلميـــــــذ(ة): | H88: =IFERROR(VLOOKUP(A77,OFFSET(sadokH2020,,1),7,FALSE)&" "&VLOOKUP(A77,OFFSET(sadokH2020,,1),8,FALSE),"") -> مصطفى محمود10 | AH88: التلميـــــــذ(ة): | AM88: =IFERROR(VLOOKUP(AF77,OFFSET(sadokH2020,,1),7,FALSE)&" "&VLOOKUP(AF77,OFFSET(sadokH2020,,1),8,FALSE),"") -> مصطفى محمود11
C90: تاريـخ الميلاد: | H90: =IFERROR(VLOOKUP(A77,OFFSET(sadokH2020,,1),9,FALSE),"") -> 2004-10-24 | AH90: تاريـخ الميلاد: | AM90: =IFERROR(VLOOKUP(AF77,OFFSET(sadokH2020,,1),9,FALSE),"") -> 2004-09-30
C92: القســــــــــــم: | H92: =IFERROR(VLOOKUP(A77,OFFSET(sadokH2020,,1),3,FALSE),"") -> 3هط2 | AH92: القســــــــــــم: | AM92: =IFERROR(VLOOKUP(AF77,OFFSET(sadokH2020,,1),3,FALSE),"") -> 3هط2
C94: رقـم التسجيـل: | H94: =IFERROR(VLOOKUP(A77,OFFSET(sadokH2020,,1),2,FALSE),"") -> 10 | AH94: رقـم التسجيـل: | AM94: =IFERROR(VLOOKUP(AF77,OFFSET(sadokH2020,,1),2,FALSE),"") -> 11
A96: =AF77+1 -> 11 | AB96: =IFERROR(VLOOKUP(A77,OFFSET(sadokH2020,,1),1,FALSE),"") -> 9 | AF96: =A96+1 -> 12 | BH96: =IFERROR(VLOOKUP(AF77,OFFSET(sadokH2020,,1),1,FALSE),"") -> 10

Sheet القائمة
F1: الجمهورية الجزائرية الديمقراطية الشعبية | J1: البحــــث | K1: محمد علي موسي3
F2: وزارة التربية الوطنية | M2: =IF($K$1<>"",ISNUMBER(SEARCH($K$1,H9:H576,1)),FALSE) -> FALSE
A3: ="مديرية التربية لولاية "&معلومات!$C$5 -> مديرية التربية لولاية الوادي
A4: ="ثانويــــة "&معلومات!$C$4&" - "&معلومات!$C$6 -> ثانويــــة ثانوية الوادي - الوادي | E4: شطب | H4: أنثى | I4: =COUNTIF($G:$G,H4) -> 406 | J4: ذكر | K4: =COUNTIF($G:$G,J4) -> 295 | L4: اكبر عدد | M4: =MAX(C:C) -> 701 | Q4: 2
D5: أ | E5: خارجي | F5: لا | H5: خارجي | I5: =COUNTIF($F:$F,H5) -> 0 | J5: نصف داخلي | K5: =COUNTIF($F:$F,J5) -> 684 | L5: اصغر عدد | M5: =MIN(C:C) -> 1 | Q5: 2
D6: ذ | E6: نصف داخلي | F6: نعم | H6: معيد | I6: =COUNTIF($E:$E,"نعم") -> 157 | J6: غير معيد | K6: =COUNTIF($E:$E,"لا") -> 543 | Q6: 2
A7: حالة أول أكتوبر 2019 | H7: شطب | I7: =COUNTIF($F:$F,H7) -> 17 | Q7: 2
A8: الرقم | B8: الرقم حسب الصفة | C8: الرقم/ التسجيل | D8: القسم | E8: الاعادة | F8: الصفة | G8: الجنس | H8: الإسم واللقب | J8: تاريخ الميلاد | K8: مكان الميلاد | L8: اسم الولي | M8: مهنته | N8: العنوان | O8: القسم | Q8: 1
A9: 124 | B9: =IF($F9=البطاقات!$BJ$1,MAX($B$8:$B8)+1,"") -> 1 | C9: 1 | D9: 3هط1 | E9: نعم | F9: نصف داخلي | G9: أنثى | H9: مصطفى | I9: محمود1 | J9: 2004-07-13 | K9: الوادي | L9: منصور1 | M9: معلم | N9: حي السلام | O9: =IF(D9=AI11,AJ11,IF(D9=AI12,AJ12,IF(D9=AI13,AJ13,IF(D9=AI14,AJ14,IF(D9=AI15,AJ15,IF(D9=AI16,AJ16,IF(D9=AI17,AJ17,IF(D9=AI18,AJ18,IF(D9=AI19,AJ19,IF(D9=AI20,AJ20,IF(D9=AI21,AJ21,IF(D9=AI22,AJ22,IF(D9=AI23,AJ23,IF(D9=AI24,AJ24,IF(D9=AI25,AJ25,IF(D9=AI26,AJ26,IF(D9=AI27,AJ27,IF(D9=AI28,AJ28,IF(D9=AI29,AJ29,IF(D9=AI30,AJ30,IF(D9=AI31,AJ31,IF(D9=AI32,AJ32,IF(D9=AI33,AJ33,IF(D9=AI34,AJ34,IF(D9=AI35,AJ35,IF(D9=AI36,AJ36,IF(D9=AI37,AJ37,IF(D9=AI38,AJ38,IF(D9=AI39,AJ39,IF(D9=AI40,AJ40,IF(D9=AI41,AJ41,IF(D9=AI42,AJ42)))))))))))))))))))))))))))))))) -> FALSE | P9: =IF(G9="ذكر","ذكر","") ->  | Q9: =IF(G9="أنثى","أنثى","") -> أنثى
A10: 1 | B10: =IF($F10=البطاقات!$BJ$1,MAX($B$8:$B9)+1,"") -> 2 | C10: 2 | D10: 3هط1 | E10: لا | F10: نصف داخلي | G10: أنثى | H10: مصطفى | I10: محمود2 | J10: 2003-08-12 | K10: الوادي | L10: منصور2 | M10: ع ي | N10: حي 8 ماي | O10: 1ج م ع 1 | P10: =IF(G10="ذكر","ذكر","") ->  | Q10: أنثى
A11: 2 | B11: =IF($F11=البطاقات!$BJ$1,MAX($B$8:$B10)+1,"") ->  | C11: 3 | D11: 3هط1 | E11: نعم | F11: شطب | G11: ذكر | H11: مصطفى | I11: محمود3 | J11: 2003-06-30 | K11: الوادي | L11: منصور3 | M11: متقاعد | N11: حي الاستقلال | O11: ثالثة ثانوي هندسة طرائق | P11: =IF(G11="ذكر","ذكر","") -> ذكر | AI11: 3هط1 | AJ11: ثالثة ثانوي هندسة طرائق 1 | AL11: 11
A12: 4 | B12: =IF($F12=البطاقات!$BJ$1,MAX($B$8:$B11)+1,"") -> 3 | C12: 4 | D12: 3هط1 | E12: لا | F12: نصف داخلي | G12: أنثى | H12: مصطفى | I12: محمود4 | J12: 2004-05-07 | K12: الوادي | L12: منصور4 | M12: تاجر | N12: حي السلام | O12: ثالثة ثانوي هندسة طرائق | P12: =IF(G12="ذكر","ذكر","") ->  | Q12: أنثى | AI12: 3هط2 | AJ12: ثالثة ثانوي هندسة طرائق 2 | AL12: 12
A13: 5 | B13: =IF($F13=البطاقات!$BJ$1,MAX($B$8:$B12)+1,"") -> 4 | C13: 5 | D13: 3هط1 | E13: لا | F13: نصف داخلي | G13: أنثى | H13: مصطفى | I13: محمود5 | J13: 2004-03-02 | K13: الوادي | L13: منصور5 | M13: متقاعد | N13: حي السلام | O13: ثالثة ثانوي هندسة طرائق | P13: أنثى | Q13: أنثى | AI13: 3ع1 | AJ13: ثالثة ثانوي علوم تجريبية 1 | AL13: 15
A14: 6 | B14: =IF($F14=البطاقات!$BJ$1,MAX($B$8:$B13)+1,"") -> 5 | C14: 6 | D14: 3هط2 | E14: لا | F14: نصف داخلي | G14: أنثى | H14: مصطفى | I14: محمود6 | J14: 2004-08-21 | K14: الوادي | L14: منصور6 | M14: بطال | N14: حي الكوثر | O14: ثالثة ثانوي هندسة طرائق | P14: =IF(G14="ذكر","ذكر","") ->  | Q14: أنثى | AI14: 3ع2 | AJ14: ثالثة ثانوي علوم تجريبية 2 | AL14: 16
A15: 8 | B15: =IF($F15=البطاقات!$BJ$1,MAX($B$8:$B14)+1,"") -> 6 | C15: 7 | D15: 3هط1 | E15: لا | F15: نصف داخلي | G15: ذكر | H15: مصطفى | I15: محمود7 | J15: 2003-01-01 | K15: الوادي | L15: منصور7 | M15: موظف | N15: حي الصومام | O15: ثالثة ثانوي هندسة طرائق | P15: ذكر | AI15: 3ع3 | AJ15: ثالثة ثانوي علوم تجريبية 3 | AL15: 18
A16: 11 | B16: =IF($F16=البطاقات!$BJ$1,MAX($B$8:$B15)+1,"") -> 7 | C16: 8 | D16: 3هط1 | E16: لا | F16: نصف داخلي | G16: أنثى | H16: مصطفى | I16: محمود8 | J16: 2004-10-18 | K16: الوادي | L16: منصور8 | M16: ع ي | N16: حي الكوثر | O16: ثالثة ثانوي تسيير وإقتصاد | Q16: أنثى | AI16: 3ريا | AJ16: ثالثة ثانوي رياضيات | AL16: 17
A17: 13 | B17: =IF($F17=البطاقات!$BJ$1,MAX($B$8:$B16)+1,"") -> 8 | C17: 9 | D17: 3هط1 | E17: لا | F17: نصف داخلي | G17: ذكر | H17: مصطفى | I17: محمود9 | J17: 2005-01-29 | K17: الوادي | L17: منصور9 | M17: متقاعد | N17: حي الكوثر | O17: ثالثة ثانوي تسيير وإقتصاد | P17: ذكر | AI17: 3تق1 | AJ17: ثالثة ثانوي تسيير وإقتصاد 1 | AL17: 13
A18: 15 | B18: =IF($F18=البطاقات!$BJ$1,MAX($B$8:$B17)+1,"") -> 9 | C18: 10 | D18: 3هط2 | E18: لا | F18: نصف داخلي | G18: ذكر | H18: مصطفى | I18: محمود10 | J18: 2004-10-24 | K18: الوادي | L18: منصور10 | M18: مقاول | N18: حي الكوثر | O18: ثالثة ثانوي تسيير وإقتصاد | P18: ذكر | AI18: 3تق2 | AJ18: ثالثة ثانوي تسيير وإقتصاد 2 | AL18: 14
A19: 16 | B19: =IF($F19=البطاقات!$BJ$1,MAX($B$8:$B18)+1,"") -> 10 | C19: 11 | D19: 3هط2 | E19: لا | F19: نصف داخلي | G19: أنثى | H19: مصطفى | I19: محمود11 | J19: 2004-09-30 | K19: الوادي | L19: منصور11 | M19: ع ي | N19: حي الفتح | O19: ثالثة ثانوي تسيير وإقتصاد | Q19: أنثى | AI19: 3آف1 | AJ19: ثالثة ثانوي آداب وفلسفة 1 | AL19: 20
A20: 18 | B20: =IF($F20=البطاقات!$BJ$1,MAX($B$8:$B19)+1,"") -> 11 | C20: 12 | D20: 3هط2 | E20: لا | F20: نصف داخلي | G20: ذكر | H20: مصطفى | I20: محمود12 | J20: 2004-09-14 | K20: الوادي | L20: منصور12 | M20: موظف | N20: حي السلام | O20: ثالثة ثانوي تسيير وإقتصاد | P20: ذكر | AI20: 3آف2 | AJ20: ثالثة ثانوي آداب وفلسفة 2 | AL20: 19
A21: 20 | B21: =IF($F21=البطاقات!$BJ$1,MAX($B$8:$B20)+1,"") -> 12 | C21: 13 | D21: 3هط1 | E21: لا | F21: نصف داخلي | G21: أنثى | H21: مصطفى | I21: محمود13 | J21: 2004-12-04 | K21: الوادي | L21: منصور13 | M21: موظف | N21: حي الازدهار | O21: ثالثة ثانوي تقني رياضي | Q21: أنثى | AI21: 2هط | AJ21: ثانية ثانوي هندسة طرائق | AL21: المكتبة
A22: 24 | B22: =IF($F22=البطاقات!$BJ$1,MAX($B$8:$B21)+1,"") -> 13 | C22: 14 | D22: 3هط2 | E22: لا | F22: نصف داخلي | G22: ذكر | H22: مصطفى | I22: محمود14 | J22: 2004-06-05 | K22: الوادي | L22: منصور14 | M22: متقاعد | N22: حي السلام | O22: ثالثة ثانويعلوم طبييعية 1 | P22: ذكر | AI22: 2ع1 | AJ22: ثانية ثانوي علوم تجريبية 1 | AL22: 1
A23: 25 | B23: =IF($F23=البطاقات!$BJ$1,MAX($B$8:$B22)+1,"") -> 14 | C23: 15 | D23: 3هط1 | E23: لا | F23: نصف داخلي | G23: أنثى | H23: مصطفى | I23: محمود15 | J23: 2004-04-24 | K23: الوادي | L23: منصور15 | M23: تاجر | N23: حي الاستقلال | O23: ثالثة ثانويعلوم طبييعية 1 | Q23: أنثى | AI23: 2ع2 | AJ23: ثانية ثانوي علوم تجريبية 2 | AL23: 2
A24: 28 | B24: =IF($F24=البطاقات!$BJ$1,MAX($B$8:$B23)+1,"") -> 15 | C24: 16 | D24: 3هط2 | E24: لا | F24: نصف داخلي | G24: أنثى | H24: مصطفى | I24: محمود16 | J24: 2004-12-30 | K24: الوادي | L24: منصور16 | M24: معلم | N24: حي الكرامة | O24: ثالثة ثانويعلوم طبييعية 1 | Q24: أنثى | AI24: 2ع3 | AJ24: ثانية ثانوي علوم تجريبية 3 | AL24: 3
A25: 30 | B25: =IF($F25=البطاقات!$BJ$1,MAX($B$8:$B24)+1,"") -> 16 | C25: 17 | D25: 3هط1 | E25: نعم | F25: نصف داخلي | G25: ذكر | H25: مصطفى | I25: محمود17 | J25: 2004-02-03 | K25: الوادي | L25: منصور17 | M25: ع ي | N25: حي الكرامة | O25: ثالثة ثانويعلوم طبييعية 1 | P25: ذكر | AI25: 2ريا | AJ25: ثانية ثانوي رياصيات | AL25: 10
A26: 33 | B26: =IF($F26=البطاقات!$BJ$1,MAX($B$8:$B25)+1,"") -> 17 | C26: 18 | D26: 3هط1 | E26: لا | F26: نصف داخلي | G26: أنثى | H26: مصطفى | I26: محمود18 | J26: 2004-09-01 | K26: الوادي | L26: منصور18 | M26: تاجر | N26: حي الازدهار | O26: ثالثة ثانويعلوم طبييعية 1 | Q26: أنثى | AI26: 2تق1 | AJ26: ثانية ثانوي تسيير وإقتصاد 1 | AL26: 7
A27: 35 | B27: =IF($F27=البطاقات!$BJ$1,MAX($B$8:$B26)+1,"") -> 18 | C27: 19 | D27: 3هط1 | E27: نعم | F27: نصف داخلي | G27: ذكر | H27: مصطفى | I27: محمود19 | J27: 2003-06-01 | K27: الوادي | L27: منصور19 | M27: موظف | N27: حي الشهداء | O27: ثالثة ثانويعلوم طبييعية 2 | P27: ذكر | AI27: 2تق2 | AJ27: ثانية ثانوي تسيير وإقتصاد 2 | AL27: 8
A28: 37 | B28: =IF($F28=البطاقات!$BJ$1,MAX($B$8:$B27)+1,"") -> 19 | C28: 20 | D28: 3هط2 | E28: لا | F28: نصف داخلي | G28: أنثى | H28: مصطفى | I28: محمود20 | J28: 2004-01-10 | K28: الوادي | L28: منصور20 | M28: متقاعد | N28: حي الاستقلال | O28: ثالثة ثانويعلوم طبييعية 2 | Q28: أنثى | AI28: 2آف1 | AJ28: ثانية ثانوي آداب وفلسفة 1 | AL28: 4
A29: 38 | B29: =IF($F29=البطاقات!$BJ$1,MAX($B$8:$B28)+1,"") -> 20 | C29: 21 | D29: 3هط2 | E29: نعم | F29: نصف داخلي | G29: ذكر | H29: مصطفى | I29: محمود21 | J29: 2003-06-15 | K29: الوادي | L29: منصور21 | M29: موظف | N29: حي السلام | O29: ثالثة ثانويعلوم طبييعية 2 | P29: ذكر | AI29: 2آف2 | AJ29: ثانية ثانوي آداب وفلسفة 2 | AL29: 5
A30: 39 | B30: =IF($F30=البطاقات!$BJ$1,MAX($B$8:$B29)+1,"") -> 21 | C30: 22 | D30: 3هط2 | E30: لا | F30: نصف داخلي | G30: ذكر | H30: مصطفى | I30: محمود22 | J30: 2004-08-20 | K30: الوادي | L30: منصور22 | M30: حارس | N30: حي السلام | O30: ثالثة ثانويعلوم طبييعية 2 | P30: ذكر | AI30: 2آف3 | AJ30: ثانية ثانوي آداب وفلسفة 3 | AL30: 6
A31: 41 | B31: =IF($F31=البطاقات!$BJ$1,MAX($B$8:$B30)+1,"") -> 22 | C31: 23 | D31: 3هط2 | E31: لا | F31: نصف داخلي | G31: ذكر | H31: مصطفى | I31: محمود23 | J31: 2004-10-22 | K31: الوادي | L31: منصور23 | M31: سائق | N31: حي الاستقلال | O31: ثالثة ثانويعلوم طبييعية 2 | P31: ذكر | AI31: 1ع1 | AJ31: أولى ثانوي جذع مشترك علوم وتك 1 | AL31: 1
A32: 42 | B32: =IF($F32=البطاقات!$BJ$1,MAX($B$8:$B31)+1,"") -> 23 | C32: 24 | D32: 3هط1 | E32: لا | F32: نصف داخلي | G32: أنثى | H32: مصطفى | I32: محمود24 | J32: 2004-07-15 | K32: الوادي | L32: منصور24 | M32: تاجر | N32: حي السلام | O32: ثالثة ثانويعلوم طبييعية 2 | Q32: أنثى | AI32: 1ع2 | AJ32: أولى ثانوي جذع مشترك علوم وتك 2 | AL32: 2
A33: 43 | B33: =IF($F33=البطاقات!$BJ$1,MAX($B$8:$B32)+1,"") -> 24 | C33: 25 | D33: 3هط1 | E33: لا | F33: نصف داخلي | G33: أنثى | H33: مصطفى | I33: محمود25 | J33: 2004-12-22 | K33: الوادي | L33: منصور25 | M33: متقاعد | N33: حي الاستقلال | O33: ثالثة ثانويعلوم طبييعية 2 | Q33: أنثى | AI33: 1ع3 | AJ33: أولى ثانوي جذع مشترك علوم وتك 3 | AL33: 3
A34: 44 | B34: =IF($F34=البطاقات!$BJ$1,MAX($B$8:$B33)+1,"") -> 25 | C34: 26 | D34: 3هط1 | E34: نعم | F34: نصف داخلي | G34: ذكر | H34: مصطفى | I34: محمود26 | J34: 2003-11-14 | K34: الوادي | L34: منصور26 | M34: موظف | N34: حي السلام | O34: ثالثة ثانويعلوم طبييعية 2 | P34: ذكر | AI34: 1ع4 | AJ34: أولى ثانوي جذع مشترك علوم وتك 4 | AL34: 4
A35: 45 | B35: =IF($F35=البطاقات!$BJ$1,MAX($B$8:$B34)+1,"") -> 26 | C35: 27 | D35: 3هط2 | E35: لا | F35: نصف داخلي | G35: ذكر | H35: مصطفى | I35: محمود27 | J35: 2004-12-29 | K35: الوادي | L35: منصور27 | M35: ع ي | N35: حي السلام | O35: ثالثة ثانوي آداب وفلسفة | P35: ذكر | AI35: 1ع5 | AJ35: أولى ثانوي جذع مشترك علوم وتك 5 | AL35: 5
A36: 46 | B36: =IF($F36=البطاقات!$BJ$1,MAX($B$8:$B35)+1,"") -> 27 | C36: 28 | D36: 3هط1 | E36: لا | F36: نصف داخلي | G36: أنثى | H36: مصطفى | I36: محمود28 | J36: 2004-01-13 | K36: الوادي | L36: منصور28 | M36: ع ي | N36: حي 18 فبراير | O36: ثالثة ثانوي آداب وفلسفة | Q36: أنثى | AI36: 1ع6 | AJ36: أولى ثانوي جذع مشترك علوم وتك 6 | AL36: 6
A37: 47 | B37: =IF($F37=البطاقات!$BJ$1,MAX($B$8:$B36)+1,"") -> 28 | C37: 29 | D37: 3تق1 | E37: لا | F37: نصف داخلي | G37: ذكر | H37: مصطفى | I37: محمود29 | J37: 2003-02-26 | K37: الوادي | L37: منصور29 | M37: موظف | N37: حي القدس | O37: ثالثة ثانوي آداب وفلسفة | P37: ذكر | AI37: 1ع7 | AJ37: أولى ثانوي جذع مشترك علوم وتك 7 | AL37: 7
A38: 49 | B38: =IF($F38=البطاقات!$BJ$1,MAX($B$8:$B37)+1,"") -> 29 | C38: 30 | D38: 3تق2 | E38: نعم | F38: نصف داخلي | G38: أنثى | H38: مصطفى | I38: محمود30 | J38: 2003-07-22 | K38: الوادي | L38: منصور30 | M38: ع ي | N38: حي النصر | O38: ثالثة ثانوي آداب وفلسفة | Q38: أنثى | AI38: 1ع8 | AJ38: أولى ثانوي جذع مشترك علوم وتك 8 | AL38: 8
A39: 50 | B39: =IF($F39=البطاقات!$BJ$1,MAX($B$8:$B38)+1,"") -> 30 | C39: 31 | D39: 3تق2 | E39: لا | F39: نصف داخلي | G39: ذكر | H39: مصطفى | I39: محمود31 | J39: 2004-06-25 | K39: الوادي | L39: منصور31 | M39: تاجر | N39: حي الفتح | O39: ثالثة ثانوي آداب وفلسفة | P39: ذكر | AI39: 1ع9 | AJ39: أولى ثانوي جذع مشترك علوم وتك 9 | AL39: 9
A40: 52 | B40: =IF($F40=البطاقات!$BJ$1,MAX($B$8:$B39)+1,"") ->  | C40: 32 | D40: 3تق1 | E40: نعم | F40: شطب | G40: ذكر | H40: مصطفى | I40: محمود32 | J40: 2003-08-19 | K40: الوادي | L40: منصور32 | M40: معلم | N40: حي الكوثر | O40: ثالثة ثانوي آداب وفلسفة | P40: ذكر | AI40: 1آ1 | AJ40: أولى ثانوي جذع مشترك آداب 1 | AL40: 9
A41: 53 | B41: =IF($F41=البطاقات!$BJ$1,MAX($B$8:$B40)+1,"") -> 31 | C41: 33 | D41: 3تق1 | E41: لا | F41: نصف داخلي | G41: أنثى | H41: مصطفى | I41: محمود33 | J41: 2004-09-13 | K41: الوادي | L41: منصور33 | M41: ع ي | N41: حي القدس | O41: ثالثة ثانوي آداب وفلسفة | Q41: أنثى | AI41: 1آ2 | AJ41: أولى ثانوي جذع مشترك آداب 2 | AL41: 10
A42: 56 | B42: =IF($F42=البطاقات!$BJ$1,MAX($B$8:$B41)+1,"") -> 32 | C42: 34 | D42: 3تق1 | E42: نعم | F42: نصف داخلي | G42: ذكر | H42: مصطفى | I42: محمود34 | J42: 2003-08-12 | K42: الوادي | L42: منصور34 | M42: موظف | N42: حي 18 فبراير | O42: ثالثة ثانوي آداب وفلسفة | P42: ذكر | AI42: 1آ3 | AJ42: أولى ثانوي جذع مشترك آداب 3 | AL42: المدرج
A43: 58 | B43: =IF($F43=البطاقات!$BJ$1,MAX($B$8:$B42)+1,"") -> 33 | C43: 35 | D43: 3تق2 | E43: لا | F43: نصف داخلي | G43: أنثى | H43: مصطفى | I43: محمود35 | J43: 2004-08-12 | K43: الوادي | L43: منصور35 | M43: موظف | N43: حي الكرامة | O43: ثالثة ثانوي آداب وفلسفة | Q43: أنثى
A44: 59 | B44: =IF($F44=البطاقات!$BJ$1,MAX($B$8:$B43)+1,"") -> 34 | C44: 36 | D44: 3تق2 | E44: لا | F44: نصف داخلي | G44: ذكر | H44: مصطفى | I44: محمود36 | J44: 2005-02-10 | K44: الوادي | L44: منصور36 | M44: معلم | N44: حي الكوثر | O44: ثالثة ثانوي آداب وفلسفة | P44: ذكر
A45: 61 | B45: =IF($F45=البطاقات!$BJ$1,MAX($B$8:$B44)+1,"") -> 35 | C45: 37 | D45: 3تق1 | E45: لا | F45: نصف داخلي | G45: أنثى | H45: مصطفى | I45: محمود37 | J45: 2005-09-14 | K45: الوادي | L45: منصور37 | M45: متقاعد | N45: حي الكرامة | O45: ثالثة ثانوي آداب وفلسفة | Q45: أنثى
A46: 62 | B46: =IF($F46=البطاقات!$BJ$1,MAX($B$8:$B45)+1,"") -> 36 | C46: 38 | D46: 3تق1 | E46: نعم | F46: نصف داخلي | G46: أنثى | H46: مصطفى | I46: محمود38 | J46: 2003-06-23 | K46: الوادي | L46: منصور38 | M46: ع ي | N46: حي الازدهار | O46: ثالثة ثانوي آداب وفلسفة | Q46: أنثى
A47: 64 | B47: =IF($F47=البطاقات!$BJ$1,MAX($B$8:$B46)+1,"") -> 37 | C47: 39 | D47: 3تق1 | E47: لا | F47: نصف داخلي | G47: أنثى | H47: مصطفى | I47: محمود39 | J47: 2003-05-30 | K47: الوادي | L47: منصور39 | M47: موظف | N47: حي الاستقلال | O47: الثانية ثانوي هندسسة طرائق | Q47: أنثى
A48: 65 | B48: =IF($F48=البطاقات!$BJ$1,MAX($B$8:$B47)+1,"") -> 38 | C48: 40 | D48: 3تق2 | E48: لا | F48: نصف داخلي | G48: ذكر | H48: مصطفى | I48: محمود40 | J48: 2003-03-07 | K48: الوادي | L48: منصور40 | M48: ع ي | N48: حي الكرامة | O48: الثانية ثانوي هندسسة طرائق | P48: ذكر
A49: 66 | B49: =IF($F49=البطاقات!$BJ$1,MAX($B$8:$B48)+1,"") -> 39 | C49: 41 | D49: 3تق2 | E49: لا | F49: نصف داخلي | G49: أنثى | H49: مصطفى | I49: محمود41 | J49: 2003-07-31 | K49: الوادي | L49: منصور41 | M49: ممرض | N49: حي السلام | O49: الثانية ثانوي هندسسة طرائق | Q49: أنثى
A50: 67 | B50: =IF($F50=البطاقات!$BJ$1,MAX($B$8:$B49)+1,"") -> 40 | C50: 42 | D50: 3تق1 | E50: لا | F50: نصف داخلي | G50: أنثى | H50: مصطفى | I50: محمود42 | J50: 2004-03-05 | K50: الوادي | L50: منصور42 | M50: موظف | N50: حي السلام | O50: الثانية ثانوي هندسسة طرائق | Q50: أنثى
A51: 70 | B51: =IF($F51=البطاقات!$BJ$1,MAX($B$8:$B50)+1,"") -> 41 | C51: 43 | D51: 3تق2 | E51: لا | F51: نصف داخلي | G51: أنثى | H51: مصطفى | I51: محمود43 | J51: 2003-10-08 | K51: الوادي | L51: منصور43 | M51: متقاعد | N51: حي الاستقلال | O51: الثانية ثانوي تسيير وإقتصاد | Q51: أنثى
A52: 72 | B52: =IF($F52=البطاقات!$BJ$1,MAX($B$8:$B51)+1,"") -> 42 | C52: 44 | D52: 3تق2 | E52: نعم | F52: نصف داخلي | G52: أنثى | H52: مصطفى | I52: محمود44 | J52: 2003-02-25 | K52: الوادي | L52: منصور44 | M52: متقاعد | N52: حي الكرامة | O52: الثانية ثانوي تسيير وإقتصاد | Q52: أنثى
A53: 73 | B53: =IF($F53=البطاقات!$BJ$1,MAX($B$8:$B52)+1,"") -> 43 | C53: 45 | D53: 3تق1 | E53: لا | F53: نصف داخلي | G53: أنثى | H53: مصطفى | I53: محمود45 | J53: 2004-01-18 | K53: الوادي | L53: منصور45 | M53: موظف | N53: حي الكرامة | O53: الثانية ثانوي تسيير وإقتصاد | Q53: أنثى
A54: 74 | B54: =IF($F54=البطاقات!$BJ$1,MAX($B$8:$B53)+1,"") -> 44 | C54: 46 | D54: 3تق2 | E54: لا | F54: نصف داخلي | G54: أنثى | H54: مصطفى | I54: محمود46 | J54: 2003-11-26 | K54: الوادي | L54: منصور46 | M54: مقاول | N54: حي السلام | O54: الثانية ثانوي تسيير وإقتصاد | Q54: أنثى
A55: 77 | B55: =IF($F55=البطاقات!$BJ$1,MAX($B$8:$B54)+1,"") -> 45 | C55: 47 | D55: 3تق1 | E55: لا | F55: نصف داخلي | G55: أنثى | H55: مصطفى | I55: محمود47 | J55: 2004-01-16 | K55: الوادي | L55: منصور47 | M55: موظف | N55: حي الكوثر | O55: الثانية ثانوي تسيير وإقتصاد | Q55: أنثى
A56: 78 | B56: =IF($F56=البطاقات!$BJ$1,MAX($B$8:$B55)+1,"") -> 46 | C56: 48 | D56: 3تق1 | E56: لا | F56: نصف داخلي | G56: ذكر | H56: مصطفى | I56: محمود48 | J56: 2005-01-01 | K56: الوادي | L56: منصور48 | M56: ع ي | N56: حي الازدهار | O56: الثانية ثانوي تسيير وإقتصاد | P56: ذكر
A57: 80 | B57: =IF($F57=البطاقات!$BJ$1,MAX($B$8:$B56)+1,"") -> 47 | C57: 49 | D57: 3تق1 | E57: نعم | F57: نصف داخلي | G57: أنثى | H57: مصطفى | I57: محمود49 | J57: 2004-01-01 | K57: الوادي | L57: منصور49 | M57: ع ي | N57: حي الازدهار | O57: الثانية ثانوي تسيير وإقتصاد | Q57: أنثى
A58: 81 | B58: =IF($F58=البطاقات!$BJ$1,MAX($B$8:$B57)+1,"") -> 48 | C58: 50 | D58: 3تق1 | E58: لا | F58: نصف داخلي | G58: أنثى | H58: مصطفى | I58: محمود50 | J58: 2003-08-10 | K58: الوادي | L58: منصور50 | M58: ع ي | N58: حي الازدهار | O58: الثانية ثانوي تسيير وإقتصاد | Q58: أنثى
A59: 82 | B59: =IF($F59=البطاقات!$BJ$1,MAX($B$8:$B58)+1,"") -> 49 | C59: 51 | D59: 3تق1 | E59: لا | F59: نصف داخلي | G59: ذكر | H59: مصطفى | I59: محمود51 | J59: 2004-09-27 | K59: الوادي | L59: منصور51 | M59: موظف | N59: حي الفتح | O59: الثانية ثانوي تسيير وإقتصاد | P59: ذكر
A60: 84 | B60: =IF($F60=البطاقات!$BJ$1,MAX($B$8:$B59)+1,"") -> 50 | C60: 52 | D60: 3تق2 | E60: لا | F60: نصف داخلي | G60: أنثى | H60: مصطفى | I60: محمود52 | J60: 2003-07-28 | K60: الوادي | L60: منصور52 | M60: موظف | N60: حي السلام | O60: الثانية ثانوي تقني رياضي | Q60: أنثى
A61: 86 | B61: =IF($F61=البطاقات!$BJ$1,MAX($B$8:$B60)+1,"") -> 51 | C61: 53 | D61: 3تق2 | E61: لا | F61: نصف داخلي | G61: أنثى | H61: مصطفى | I61: محمود53 | J61: 2004-10-28 | K61: الوادي | L61: منصور53 | M61: جزار | N61: حي الكرامة | O61: الثانية ثانوي تقني رياضي | Q61: أنثى
A62: 87 | B62: =IF($F62=البطاقات!$BJ$1,MAX($B$8:$B61)+1,"") -> 52 | C62: 54 | D62: 3تق2 | E62: نعم | F62: نصف داخلي | G62: ذكر | H62: مصطفى | I62: محمود54 | J62: 2003-10-02 | K62: الوادي | L62: منصور54 | M62: موظف | N62: حي الكرامة | O62: 2ع1 | P62: ذكر
A63: 88 | B63: =IF($F63=البطاقات!$BJ$1,MAX($B$8:$B62)+1,"") -> 53 | C63: 55 | D63: 3تق2 | E63: لا | F63: نصف داخلي | G63: ذكر | H63: مصطفى | I63: محمود55 | J63: 2004-09-29 | K63: الوادي | L63: منصور55 | M63: فلاح | N63: حي الكوثر | O63: 2ع1 | P63: ذكر
A64: 90 | B64: =IF($F64=البطاقات!$BJ$1,MAX($B$8:$B63)+1,"") -> 54 | C64: 56 | D64: 3تق1 | E64: لا | F64: نصف داخلي | G64: أنثى | H64: مصطفى | I64: محمود56 | J64: 2004-12-17 | K64: الوادي | L64: منصور56 | M64: ع ي | N64: حي الكرامة | O64: 2ع1 | Q64: أنثى
A65: 91 | B65: =IF($F65=البطاقات!$BJ$1,MAX($B$8:$B64)+1,"") -> 55 | C65: 57 | D65: 3تق1 | E65: نعم | F65: نصف داخلي | G65: ذكر | H65: مصطفى | I65: محمود57 | J65: 2003-09-03 | K65: الوادي | L65: منصور57 | M65: ع ي | N65: حي 18 فبراير | O65: 2ع1 | P65: ذكر
A66: 93 | B66: =IF($F66=البطاقات!$BJ$1,MAX($B$8:$B65)+1,"") -> 56 | C66: 58 | D66: 3تق1 | E66: لا | F66: نصف داخلي | G66: أنثى | H66: مصطفى | I66: محمود58 | J66: 2003-12-01 | K66: الوادي | L66: منصور58 | M66: ربة بيت | N66: حي 18 فبراير | O66: 2ع1 | Q66: أنثى
A67: 94 | B67: =IF($F67=البطاقات!$BJ$1,MAX($B$8:$B66)+1,"") -> 57 | C67: 59 | D67: 3تق2 | E67: لا | F67: نصف داخلي | G67: أنثى | H67: مصطفى | I67: محمود59 | J67: 2004-01-13 | K67: الوادي | L67: منصور59 | M67: ع ي | N67: حي الاستقلال | O67: 2ع1 | Q67: أنثى
A68: 95 | B68: =IF($F68=البطاقات!$BJ$1,MAX($B$8:$B67)+1,"") -> 58 | C68: 60 | D68: 3تق2 | E68: نعم | F68: نصف داخلي | G68: ذكر | H68: مصطفى | I68: محمود60 | J68: 2001-04-18 | K68: الوادي | L68: منصور60 | M68: ع ي | N68: حي القدس | O68: 2ع1 | P68: ذكر
A69: 99 | B69: =IF($F69=البطاقات!$BJ$1,MAX($B$8:$B68)+1,"") -> 59 | C69: 61 | D69: 3تق1 | E69: نعم | F69: نصف داخلي | G69: أنثى | H69: مصطفى | I69: محمود61 | J69: 2002-01-07 | K69: الوادي | L69: منصور61 | M69: ربة بيت | N69: حي الازدهار | O69: 2ع1 | Q69: أنثى
A70: 100 | B70: =IF($F70=البطاقات!$BJ$1,MAX($B$8:$B69)+1,"") -> 60 | C70: 62 | D70: 3ريا | E70: لا | F70: نصف داخلي | G70: أنثى | H70: مصطفى | I70: محمود62 | J70: 2003-04-06 | K70: الوادي | L70: منصور62 | M70: ع ي | N70: حي 8ماي | O70: 2ع1 | Q70: أنثى
A71: 101 | B71: =IF($F71=البطاقات!$BJ$1,MAX($B$8:$B70)+1,"") -> 61 | C71: 63 | D71: 3ريا | E71: لا | F71: نصف داخلي | G71: ذكر | H71: مصطفى | I71: محمود63 | J71: 2004-09-02 | K71: الوادي | L71: منصور63 | M71: بطال | N71: حي الكوثر | O71: 2ع1 | P71: ذكر
A72: 104 | B72: =IF($F72=البطاقات!$BJ$1,MAX($B$8:$B71)+1,"") -> 62 | C72: 64 | D72: 3ريا | E72: لا | F72: نصف داخلي | G72: أنثى | H72: مصطفى | I72: محمود64 | J72: 2004-01-08 | K72: الوادي | L72: منصور64 | M72: ع ي | N72: حي الكوثر | O72: 2ع2 | Q72: أنثى
A73: 105 | B73: =IF($F73=البطاقات!$BJ$1,MAX($B$8:$B72)+1,"") -> 63 | C73: 65 | D73: 3ريا | E73: لا | F73: نصف داخلي | G73: أنثى | H73: مصطفى | I73: محمود65 | J73: 2003-08-05 | K73: الوادي | L73: منصور65 | M73: ع ي | N73: حي الازدهار | O73: 2ع2 | Q73: =IF(G73="أنثى","أنثى","") -> أنثى
A74: 107 | B74: =IF($F74=البطاقات!$BJ$1,MAX($B$8:$B73)+1,"") -> 64 | C74: 66 | D74: 3ريا | E74: لا | F74: نصف داخلي | G74: أنثى | H74: مصطفى | I74: محمود66 | J74: 2004-03-27 | K74: الوادي | L74: منصور66 | M74: موظف | N74: حي الكوثر | O74: 2ع2 | Q74: أنثى
A75: 112 | B75: =IF($F75=البطاقات!$BJ$1,MAX($B$8:$B74)+1,"") -> 65 | C75: 67 | D75: 3ريا | E75: لا | F75: نصف داخلي | G75: أنثى | H75: مصطفى | I75: محمود67 | J75: 2004-06-16 | K75: الوادي | L75: منصور67 | M75: ع ي | N75: حي الكوثر | O75: 2ع2 | Q75: أنثى
A76: 113 | B76: =IF($F76=البطاقات!$BJ$1,MAX($B$8:$B75)+1,"") -> 66 | C76: 68 | D76: 3ريا | E76: لا | F76: نصف داخلي | G76: ذكر | H76: مصطفى | I76: محمود68 | J76: 2003-07-02 | K76: الوادي | L76: منصور68 | M76: موظف | N76: حي ابن باديس | O76: 2ع2 | P76: ذكر
A77: 118 | B77: =IF($F77=البطاقات!$BJ$1,MAX($B$8:$B76)+1,"") -> 67 | C77: 69 | D77: 3ريا | E77: لا | F77: نصف داخلي | G77: ذكر | H77: مصطفى | I77: محمود69 | J77: 2003-07-04 | K77: الوادي | L77: منصور69 | M77: ع ي | N77: حي الفتح | O77: 2آف | P77: ذكر
A78: 119 | B78: =IF($F78=البطاقات!$BJ$1,MAX($B$8:$B77)+1,"") -> 68 | C78: 70 | D78: 3ريا | E78: لا | F78: نصف داخلي | G78: أنثى | H78: مصطفى | I78: محمود70 | J78: 2004-03-26 | K78: الوادي | L78: منصور70 | M78: فلاح | N78: حي السلام | O78: 2آف | P78: =IF(G78="ذكر","ذكر","") ->  | Q78: أنثى
A79: 122 | B79: =IF($F79=البطاقات!$BJ$1,MAX($B$8:$B78)+1,"") -> 69 | C79: 71 | D79: 3ريا | E79: لا | F79: نصف داخلي | G79: ذكر | H79: مصطفى | I79: محمود71 | J79: 2004-12-01 | K79: الوادي | L79: منصور71 | M79: ع ي | N79: حي الاستقلال | O79: 2آف | P79: ذكر
A80: 123 | B80: =IF($F80=البطاقات!$BJ$1,MAX($B$8:$B79)+1,"") -> 70 | C80: 72 | D80: 3ريا | E80: لا | F80: نصف داخلي | G80: أنثى | H80: مصطفى | I80: محمود72 | J80: 2004-08-05 | K80: الوادي | L80: منصور72 | M80: دهان | N80: حي السلام | O80: 1ج م ع 1 | Q80: أنثى
A81: 127 | B81: =IF($F81=البطاقات!$BJ$1,MAX($B$8:$B80)+1,"") -> 71 | C81: 73 | D81: 3ريا | E81: لا | F81: نصف داخلي | G81: أنثى | H81: مصطفى | I81: محمود73 | J81: 2004-11-20 | K81: الوادي | L81: منصور73 | M81: ع ي | N81: حي 50 سكن | O81: 1ج م ع 1 | Q81: أنثى
A82: 128 | B82: =IF($F82=البطاقات!$BJ$1,MAX($B$8:$B81)+1,"") -> 72 | C82: 74 | D82: 3ريا | E82: لا | F82: نصف داخلي | G82: أنثى | H82: مصطفى | I82: محمود74 | J82: 2004-03-15 | K82: الوادي | L82: منصور74 | M82: موظف | N82: حي القدس | O82: 1ج م ع 1 | Q82: أنثى
A83: 129 | B83: =IF($F83=البطاقات!$BJ$1,MAX($B$8:$B82)+1,"") -> 73 | C83: 75 | D83: 3ع2 | E83: لا | F83: نصف داخلي | G83: ذكر | H83: مصطفى | I83: محمود75 | J83: 2004-07-21 | K83: الوادي | L83: منصور75 | M83: عامل يومي | N83: حي الازدهار | O83: 1ج م ع 1 | P83: ذكر
A84: 132 | B84: =IF($F84=البطاقات!$BJ$1,MAX($B$8:$B83)+1,"") -> 74 | C84: 76 | D84: 3ع1 | E84: لا | F84: نصف داخلي | G84: ذكر | H84: مصطفى | I84: محمود76 | J84: 2004-07-09 | K84: الوادي | L84: منصور76 | M84: متقاعد | N84: حي الاستقلال | O84: 1ج م ع 1 | P84: ذكر
A85: 133 | B85: =IF($F85=البطاقات!$BJ$1,MAX($B$8:$B84)+1,"") -> 75 | C85: 77 | D85: 3ع2 | E85: لا | F85: نصف داخلي | G85: أنثى | H85: مصطفى | I85: محمود77 | J85: 2004-02-01 | K85: الوادي | L85: منصور77 | M85: مقاول | N85: حي الازدهار | O85: 1ج م ع 1 | Q85: أنثى
A86: 134 | B86: =IF($F86=البطاقات!$BJ$1,MAX($B$8:$B85)+1,"") -> 76 | C86: 78 | D86: 3ع2 | E86: لا | F86: نصف داخلي | G86: أنثى | H86: مصطفى | I86: محمود78 | J86: 2004-03-19 | K86: الوادي | L86: منصور78 | M86: عامل يومي | N86: حي الفتح | O86: 1ج م ع 1 | Q86: أنثى
A87: 135 | B87: =IF($F87=البطاقات!$BJ$1,MAX($B$8:$B86)+1,"") -> 77 | C87: 79 | D87: 3ع1 | E87: لا | F87: نصف داخلي | G87: ذكر | H87: مصطفى | I87: محمود79 | J87: 2004-04-12 | K87: الوادي | L87: منصور79 | M87: موظف | N87: حي الاستقلال | O87: 1ج م ع 1 | P87: ذكر
A88: 138 | B88: =IF($F88=البطاقات!$BJ$1,MAX($B$8:$B87)+1,"") -> 78 | C88: 80 | D88: 3ع1 | E88: لا | F88: نصف داخلي | G88: أنثى | H88: مصطفى | I88: محمود80 | J88: 2001-10-09 | K88: الوادي | L88: منصور80 | M88: عبد المجيد | N88: حي الصومام | O88: 1ج م ع 1 | Q88: أنثى
A89: 139 | B89: =IF($F89=البطاقات!$BJ$1,MAX($B$8:$B88)+1,"") -> 79 | C89: 81 | D89: 3ع1 | E89: لا | F89: نصف داخلي | G89: أنثى | H89: مصطفى | I89: محمود81 | J89: 2004-05-26 | K89: الوادي | L89: منصور81 | M89: أستاد | N89: حي الكوثر | O89: 1ج م ع 1 | Q89: أنثى
A90: 140 | B90: =IF($F90=البطاقات!$BJ$1,MAX($B$8:$B89)+1,"") -> 80 | C90: 82 | D90: 3ع2 | E90: لا | F90: نصف داخلي | G90: أنثى | H90: مصطفى | I90: محمود82 | J90: 2002-08-24 | K90: الوادي | L90: منصور82 | M90: عامل يومي | N90: حي الكرامة | O90: 1ج م ع 2 | Q90: أنثى
A91: 143 | B91: =IF($F91=البطاقات!$BJ$1,MAX($B$8:$B90)+1,"") -> 81 | C91: 83 | D91: 3ع2 | E91: لا | F91: نصف داخلي | G91: ذكر | H91: مصطفى | I91: محمود83 | J91: 2003-02-07 | K91: الوادي | L91: منصور83 | M91: متقاعد | N91: حي الكوثر | O91: 1ج م ع 2 | P91: ذكر
A92: 145 | B92: =IF($F92=البطاقات!$BJ$1,MAX($B$8:$B91)+1,"") -> 82 | C92: 84 | D92: 3ع2 | E92: لا | F92: نصف داخلي | G92: أنثى | H92: مصطفى | I92: محمود84 | J92: 2003-04-05 | K92: الوادي | L92: منصور84 | M92: بطال | N92: حي الكوثر | O92: 1ج م ع ت2 | Q92: أنثى
A93: 146 | B93: =IF($F93=البطاقات!$BJ$1,MAX($B$8:$B92)+1,"") -> 83 | C93: 85 | D93: 3ع2 | E93: لا | F93: نصف داخلي | G93: ذكر | H93: مصطفى | I93: محمود85 | J93: 2004-12-03 | K93: الوادي | L93: منصور85 | M93: متقاعد | N93: حي السلام | O93: 1ج م ع ت3 | P93: ذكر
A94: 147 | B94: =IF($F94=البطاقات!$BJ$1,MAX($B$8:$B93)+1,"") -> 84 | C94: 86 | D94: 3ع1 | E94: لا | F94: نصف داخلي | G94: أنثى | H94: مصطفى | I94: محمود86 | J94: 2004-08-31 | K94: الوادي | L94: منصور86 | M94: بطال | N94: حي الازهار | O94: 1ج م ع ت3 | Q94: أنثى
A95: 151 | B95: =IF($F95=البطاقات!$BJ$1,MAX($B$8:$B94)+1,"") -> 85 | C95: 87 | D95: 3ع1 | E95: لا | F95: نصف داخلي | G95: أنثى | H95: مصطفى | I95: محمود87 | J95: 2004-01-01 | K95: الوادي | L95: منصور87 | M95: طبيب | N95: حي النصر | O95: 1ج م ع ت3 | Q95: أنثى
A96: 155 | B96: =IF($F96=البطاقات!$BJ$1,MAX($B$8:$B95)+1,"") -> 86 | C96: 88 | D96: 3ع2 | E96: لا | F96: نصف داخلي | G96: أنثى | H96: مصطفى | I96: محمود88 | J96: 2004-01-11 | K96: الوادي | L96: منصور88 | M96: موظف | N96: حي الاستقلال | O96: 1ج م ع ت4 | Q96: أنثى
A97: 156 | B97: =IF($F97=البطاقات!$BJ$1,MAX($B$8:$B96)+1,"") -> 87 | C97: 89 | D97: 3ع2 | E97: لا | F97: نصف داخلي | G97: ذكر | H97: مصطفى | I97: محمود89 | J97: 2004-02-11 | K97: الوادي | L97: منصور89 | M97: موظف | N97: حي الوادي | O97: 1ج م ع ت4 | P97: ذكر
A98: 157 | B98: =IF($F98=البطاقات!$BJ$1,MAX($B$8:$B97)+1,"") -> 88 | C98: 90 | D98: 3ع1 | E98: لا | F98: نصف داخلي | G98: أنثى | H98: مصطفى | I98: محمود90 | J98: 2005-01-11 | K98: الوادي | L98: منصور90 | M98: موظف | N98: حي الاستقلال | O98: 1ج م ع ت4 | Q98: أنثى
A99: 158 | B99: =IF($F99=البطاقات!$BJ$1,MAX($B$8:$B98)+1,"") -> 89 | C99: 91 | D99: 3ع2 | E99: لا | F99: نصف داخلي | G99: أنثى | H99: مصطفى | I99: محمود91 | J99: 2004-10-10 | K99: الوادي | L99: منصور91 | M99: ع ي | N99: حي الكرامة | O99: 1ج م ع ت4 | Q99: أنثى
A100: 159 | B100: =IF($F100=البطاقات!$BJ$1,MAX($B$8:$B99)+1,"") -> 90 | C100: 92 | D100: 3ع2 | E100: لا | F100: نصف داخلي | G100: ذكر | H100: مصطفى | I100: محمود92 | J100: 2004-11-08 | K100: الوادي | L100: منصور92 | M100: فلاح | N100: حي الكوثر | O100: 1ج م ع ت4 | P100: ذكر
A101: 160 | B101: =IF($F101=البطاقات!$BJ$1,MAX($B$8:$B100)+1,"") -> 91 | C101: 93 | D101: 3ع1 | E101: لا | F101: نصف داخلي | G101: أنثى | H101: مصطفى | I101: محمود93 | J101: 2006-01-04 | K101: الوادي | L101: منصور93 | M101: عامل يومي | N101: حي الاستقلال | O101: 1ج م ع ت4 | Q101: أنثى
A102: 161 | B102: =IF($F102=البطاقات!$BJ$1,MAX($B$8:$B101)+1,"") -> 92 | C102: 94 | D102: 3ع1 | E102: لا | F102: نصف داخلي | G102: أنثى | H102: مصطفى | I102: محمود94 | J102: 2005-01-15 | K102: الوادي | L102: منصور94 | M102: موظف | N102: حي السلام | O102: 1ج م ع ت4 | Q102: أنثى
A103: 162 | B103: =IF($F103=البطاقات!$BJ$1,MAX($B$8:$B102)+1,"") -> 93 | C103: 95 | D103: 3ع2 | E103: لا | F103: نصف داخلي | G103: أنثى | H103: مصطفى | I103: محمود95 | J103: 2004-08-26 | K103: الوادي | L103: منصور95 | M103: متقاعد | N103: حي الاستقلال | O103: 1ج م ع ت4 | Q103: أنثى
A104: 163 | B104: =IF($F104=البطاقات!$BJ$1,MAX($B$8:$B103)+1,"") -> 94 | C104: 96 | D104: 3ع1 | E104: لا | F104: نصف داخلي | G104: ذكر | H104: مصطفى | I104: محمود96 | J104: 2003-11-17 | K104: الوادي | L104: منصور96 | M104: عامل يومي | N104: حي الفتح | O104: 1ج م ع ت4 | P104: ذكر
A105: 164 | B105: =IF($F105=البطاقات!$BJ$1,MAX($B$8:$B104)+1,"") -> 95 | C105: 97 | D105: 3ع2 | E105: لا | F105: نصف داخلي | G105: ذكر | H105: مصطفى | I105: محمود97 | J105: 2004-09-27 | K105: الوادي | L105: منصور97 | M105: عامل يومي | N105: حي السلام | O105: 1ج م ع ت5 | P105: ذكر
A106: 165 | B106: =IF($F106=البطاقات!$BJ$1,MAX($B$8:$B105)+1,"") -> 96 | C106: 98 | D106: 3ع1 | E106: لا | F106: نصف داخلي | G106: ذكر | H106: مصطفى | I106: محمود98 | J106: 2003-06-18 | K106: الوادي | L106: منصور98 | M106: موظف | N106: حي الازدهار | O106: 1ج م ع ت5 | P106: ذكر
A107: 166 | B107: =IF($F107=البطاقات!$BJ$1,MAX($B$8:$B106)+1,"") -> 97 | C107: 99 | D107: 3ع1 | E107: لا | F107: نصف داخلي | G107: أنثى | H107: مصطفى | I107: محمود99 | J107: 2004-12-09 | K107: الوادي | L107: منصور99 | M107: موظف | N107: حي السلام | O107: 1ج م ع ت5 | Q107: أنثى
A108: 167 | B108: =IF($F108=البطاقات!$BJ$1,MAX($B$8:$B107)+1,"") -> 98 | C108: 100 | D108: 3ع2 | E108: لا | F108: نصف داخلي | G108: أنثى | H108: مصطفى | I108: محمود100 | J108: 2004-04-20 | K108: الوادي | L108: منصور100 | M108: موظف | N108: حي الفتح | O108: 1ج م ع ت5 | Q108: أنثى
A109: 168 | B109: =IF($F109=البطاقات!$BJ$1,MAX($B$8:$B108)+1,"") -> 99 | C109: 101 | D109: 3ع2 | E109: لا | F109: نصف داخلي | G109: أنثى | H109: مصطفى | I109: محمود101 | J109: 2004-07-20 | K109: الوادي | L109: منصور101 | M109: نجار | N109: حي 18 فبراير | O109: 1ج م ع ت5 | Q109: أنثى
A110: 169 | B110: =IF($F110=البطاقات!$BJ$1,MAX($B$8:$B109)+1,"") -> 100 | C110: 102 | D110: 3ع1 | E110: لا | F110: نصف داخلي | G110: ذكر | H110: مصطفى | I110: محمود102 | J110: 2004-11-02 | K110: الوادي | L110: منصور102 | M110: عامل يومي | N110: حي الفتح | O110: 1ج م ع ت5 | P110: ذكر
A111: 171 | B111: =IF($F111=البطاقات!$BJ$1,MAX($B$8:$B110)+1,"") -> 101 | C111: 103 | D111: 3ع2 | E111: لا | F111: نصف داخلي | G111: ذكر | H111: مصطفى | I111: محمود103 | J111: 2003-03-10 | K111: الوادي | L111: منصور103 | M111: موظف | N111: حي السلام | O111: 1ج م ع ت5 | P111: ذكر
A112: 173 | B112: =IF($F112=البطاقات!$BJ$1,MAX($B$8:$B111)+1,"") -> 102 | C112: 104 | D112: 3ع1 | E112: لا | F112: نصف داخلي | G112: أنثى | H112: مصطفى | I112: محمود104 | J112: 2004-05-10 | K112: الوادي | L112: منصور104 | M112: حداد | N112: حي الكرامة | O112: 1آ1 | Q112: أنثى
A113: 174 | B113: =IF($F113=البطاقات!$BJ$1,MAX($B$8:$B112)+1,"") -> 103 | C113: 105 | D113: 3ع1 | E113: لا | F113: نصف داخلي | G113: أنثى | H113: مصطفى | I113: محمود105 | J113: 2004-02-07 | K113: الوادي | L113: منصور105 | M113: تاجر | N113: حي الازدهار | O113: 1آ1 | Q113: أنثى
A114: 176 | B114: =IF($F114=البطاقات!$BJ$1,MAX($B$8:$B113)+1,"") -> 104 | C114: 106 | D114: 3ع2 | E114: لا | F114: نصف داخلي | G114: ذكر | H114: مصطفى | I114: محمود106 | J114: 2003-10-25 | K114: الوادي | L114: منصور106 | M114: متقاعد | N114: حي بن باديس | O114: 1آ1 | P114: ذكر
A115: 177 | B115: =IF($F115=البطاقات!$BJ$1,MAX($B$8:$B114)+1,"") -> 105 | C115: 107 | D115: 3ع2 | E115: لا | F115: نصف داخلي | G115: أنثى | H115: مصطفى | I115: محمود107 | J115: 2004-04-25 | K115: الوادي | L115: منصور107 | M115: ع ي | N115: حي ابن باديس | O115: 1آ1 | Q115: أنثى
A116: 178 | B116: =IF($F116=البطاقات!$BJ$1,MAX($B$8:$B115)+1,"") -> 106 | C116: 108 | D116: 3ع1 | E116: لا | F116: نصف داخلي | G116: ذكر | H116: مصطفى | I116: محمود108 | J116: 2004-04-03 | K116: الوادي | L116: منصور108 | M116: معلم | N116: حي الازدهار | O116: 1آ1 | P116: ذكر
A117: 180 | B117: =IF($F117=البطاقات!$BJ$1,MAX($B$8:$B116)+1,"") -> 107 | C117: 109 | D117: 3ع2 | E117: لا | F117: نصف داخلي | G117: ذكر | H117: مصطفى | I117: محمود109 | J117: 2003-07-30 | K117: الوادي | L117: منصور109 | M117: متقاعد | N117: حي الكرامة | O117: 1آ1 | P117: ذكر
A118: 181 | B118: =IF($F118=البطاقات!$BJ$1,MAX($B$8:$B117)+1,"") -> 108 | C118: 110 | D118: 3ع2 | E118: لا | F118: نصف داخلي | G118: ذكر | H118: مصطفى | I118: محمود110 | J118: 2004-01-08 | K118: الوادي | L118: منصور110 | M118: متقاعد | N118: حي السلام | O118: 1آ1 | P118: ذكر
A119: 182 | B119: =IF($F119=البطاقات!$BJ$1,MAX($B$8:$B118)+1,"") -> 109 | C119: 111 | D119: 3ع1 | E119: لا | F119: نصف داخلي | G119: ذكر | H119: مصطفى | I119: محمود111 | J119: 2004-09-21 | K119: الوادي | L119: منصور111 | M119: طبيب | N119: حي السلام | O119: 1آ1 | P119: ذكر
A120: 183 | B120: =IF($F120=البطاقات!$BJ$1,MAX($B$8:$B119)+1,"") -> 110 | C120: 112 | D120: 3ع1 | E120: نعم | F120: نصف داخلي | G120: أنثى | H120: مصطفى | I120: محمود112 | J120: 2003-11-01 | K120: الوادي | L120: منصور112 | M120: ع ي | N120: حي الاستقلال | O120: 1آ1 | Q120: أنثى
A121: 184 | B121: =IF($F121=البطاقات!$BJ$1,MAX($B$8:$B120)+1,"") -> 111 | C121: 113 | D121: 3ع1 | E121: لا | F121: نصف داخلي | G121: أنثى | H121: مصطفى | I121: محمود113 | J121: 2004-03-12 | K121: الوادي | L121: منصور113 | M121: متقاعد | N121: حي السلام | O121: 1آ1 | Q121: أنثى
A122: 185 | B122: =IF($F122=البطاقات!$BJ$1,MAX($B$8:$B121)+1,"") -> 112 | C122: 114 | D122: 3ع2 | E122: لا | F122: نصف داخلي | G122: ذكر | H122: مصطفى | I122: محمود114 | J122: 2004-12-02 | K122: الوادي | L122: منصور114 | M122: عامل يومي | N122: حي السلام | O122: 1آ1 | P122: ذكر
A123: 186 | B123: =IF($F123=البطاقات!$BJ$1,MAX($B$8:$B122)+1,"") -> 113 | C123: 115 | D123: 3ع1 | E123: لا | F123: نصف داخلي | G123: ذكر | H123: مصطفى | I123: محمود115 | J123: 2004-08-06 | K123: الوادي | L123: منصور115 | M123: موظف | N123: حي الاستقلال | O123: 1آ2 | P123: ذكر
A124: 187 | B124: =IF($F124=البطاقات!$BJ$1,MAX($B$8:$B123)+1,"") -> 114 | C124: 116 | D124: 3ع2 | E124: لا | F124: نصف داخلي | G124: ذكر | H124: مصطفى | I124: محمود116 | J124: 2004-08-02 | K124: الوادي | L124: منصور116 | M124: متقاعد | N124: حي السلام | O124: 1آ2 | P124: ذكر
A125: 188 | B125: =IF($F125=البطاقات!$BJ$1,MAX($B$8:$B124)+1,"") -> 115 | C125: 117 | D125: 3ع1 | E125: لا | F125: نصف داخلي | G125: ذكر | H125: مصطفى | I125: محمود117 | J125: 2004-11-04 | K125: الوادي | L125: منصور117 | M125: ع ي | N125: حي السلام | O125: 1آ2 | P125: ذكر
A126: 190 | B126: =IF($F126=البطاقات!$BJ$1,MAX($B$8:$B125)+1,"") -> 116 | C126: 118 | D126: 3ع2 | E126: لا | F126: نصف داخلي | G126: أنثى | H126: مصطفى | I126: محمود118 | J126: 2004-02-17 | K126: الوادي | L126: منصور118 | M126: ع ي | N126: حي الازهار | O126: 1آ2 | Q126: أنثى
A127: 192 | B127: =IF($F127=البطاقات!$BJ$1,MAX($B$8:$B126)+1,"") -> 117 | C127: 119 | D127: 3ع1 | E127: لا | F127: نصف داخلي | G127: أنثى | H127: مصطفى | I127: محمود119 | J127: 2004-03-08 | K127: الوادي | L127: منصور119 | M127: ع ي | N127: حي 18 فبراير | O127: ثالثة ثانوي هندسة طرائق | Q127: أنثى
A128: 194 | B128: =IF($F128=البطاقات!$BJ$1,MAX($B$8:$B127)+1,"") -> 118 | C128: 120 | D128: 3ع1 | E128: لا | F128: نصف داخلي | G128: ذكر | H128: مصطفى | I128: محمود120 | J128: 2003-06-24 | K128: الوادي | L128: منصور120 | M128: متقاعد | N128: حي السلام | O128: ثالثة ثانوي هندسة طرائق | P128: ذكر
A129: 195 | B129: =IF($F129=البطاقات!$BJ$1,MAX($B$8:$B128)+1,"") -> 119 | C129: 121 | D129: 3ع1 | E129: لا | F129: نصف داخلي | G129: ذكر | H129: مصطفى | I129: محمود121 | J129: 2004-07-13 | K129: الوادي | L129: منصور121 | M129: موظف | N129: حي 18 فبراير | O129: ثالثة ثانوي هندسة طرائق | P129: ذكر
A130: 205 | B130: =IF($F130=البطاقات!$BJ$1,MAX($B$8:$B129)+1,"") -> 120 | C130: 122 | D130: 3ع1 | E130: لا | F130: نصف داخلي | G130: أنثى | H130: مصطفى | I130: محمود122 | J130: 2004-10-24 | K130: الوادي | L130: منصور122 | M130: مقاول | N130: حي 08ماي | O130: ثالثة ثانوي تسيير وإقتصاد | Q130: أنثى
A131: 211 | B131: =IF($F131=البطاقات!$BJ$1,MAX($B$8:$B130)+1,"") -> 121 | C131: 123 | D131: 3ع2 | E131: لا | F131: نصف داخلي | G131: أنثى | H131: مصطفى | I131: محمود123 | J131: 2003-09-19 | K131: الوادي | L131: منصور123 | M131: عامل يومي | N131: حي الفتح | O131: ثالثة ثانوي تسيير وإقتصاد | Q131: أنثى
A132: 216 | B132: =IF($F132=البطاقات!$BJ$1,MAX($B$8:$B131)+1,"") ->  | C132: 124 | E132: نعم | F132: شطب | G132: أنثى | H132: مصطفى | I132: محمود124 | J132: 2003-10-09 | K132: الوادي | L132: منصور124 | M132: ع ي | N132: حي الفتح | O132: ثالثة ثانوي تسيير وإقتصاد | Q132: أنثى
A133: 218 | B133: =IF($F133=البطاقات!$BJ$1,MAX($B$8:$B132)+1,"") -> 122 | C133: 125 | D133: 3ع1 | E133: لا | F133: نصف داخلي | G133: ذكر | H133: مصطفى | I133: محمود125 | J133: 2003-01-27 | K133: الوادي | L133: منصور125 | M133: عامل يومي | N133: حي 18 فبراير | O133: ثالثة ثانوي تسيير وإقتصاد | P133: ذكر
A134: 221 | B134: =IF($F134=البطاقات!$BJ$1,MAX($B$8:$B133)+1,"") -> 123 | C134: 126 | D134: 3ع2 | E134: لا | F134: نصف داخلي | G134: ذكر | H134: مصطفى | I134: محمود126 | J134: 2003-11-14 | K134: الوادي | L134: منصور126 | M134: ع ي | N134: حي 18 فبراير | O134: ثالثة ثانوي تسيير وإقتصاد | P134: ذكر
A135: 222 | B135: =IF($F135=البطاقات!$BJ$1,MAX($B$8:$B134)+1,"") -> 124 | C135: 127 | D135: 3ع2 | E135: لا | F135: نصف داخلي | G135: أنثى | H135: مصطفى | I135: محمود127 | J135: 2003-03-31 | K135: الوادي | L135: منصور127 | M135: معلم | N135: حي الازدهار | O135: ثالثة ثانوي تقني رياضي | Q135: أنثى
A136: 225 | B136: =IF($F136=البطاقات!$BJ$1,MAX($B$8:$B135)+1,"") -> 125 | C136: 128 | D136: 3ع2 | E136: لا | F136: نصف داخلي | G136: أنثى | H136: مصطفى | I136: محمود128 | J136: 2003-07-05 | K136: الوادي | L136: منصور128 | M136: عامل يومي | N136: حي الازدهار | O136: ثالثة ثانويعلوم طبييعية 1 | Q136: أنثى
A137: 226 | B137: =IF($F137=البطاقات!$BJ$1,MAX($B$8:$B136)+1,"") -> 126 | C137: 129 | D137: 3ع3 | E137: نعم | F137: نصف داخلي | G137: أنثى | H137: مصطفى | I137: محمود129 | J137: 2003-10-08 | K137: الوادي | L137: منصور129 | M137: عامل يومي | N137: حي م بوضياف | O137: ثالثة ثانويعلوم طبييعية 1 | Q137: =IF(G137="أنثى","أنثى","") -> أنثى
A138: 228 | B138: =IF($F138=البطاقات!$BJ$1,MAX($B$8:$B137)+1,"") ->  | C138: 130 | E138: لا | F138: شطب | G138: ذكر | H138: مصطفى | I138: محمود130 | J138: 2003-03-10 | K138: الوادي | L138: منصور130 | M138: موظف | N138: حي الازدهار | O138: ثالثة ثانويعلوم طبييعية 1 | P138: ذكر
A139: 229 | B139: =IF($F139=البطاقات!$BJ$1,MAX($B$8:$B138)+1,"") -> 127 | C139: 131 | D139: 3ع3 | E139: لا | F139: نصف داخلي | G139: ذكر | H139: مصطفى | I139: محمود131 | J139: 2004-07-21 | K139: الوادي | L139: منصور131 | M139: تاجر | N139: حي الفتح | O139: ثالثة ثانويعلوم طبييعية 2 | P139: ذكر
A140: 232 | B140: =IF($F140=البطاقات!$BJ$1,MAX($B$8:$B139)+1,"") -> 128 | C140: 132 | D140: 3ع3 | E140: لا | F140: نصف داخلي | G140: أنثى | H140: مصطفى | I140: محمود132 | J140: 2004-11-13 | K140: الوادي | L140: منصور132 | M140: عامل يومي | N140: حي 18 فبراير | O140: ثالثة ثانويعلوم طبييعية 2 | Q140: أنثى
A141: 233 | B141: =IF($F141=البطاقات!$BJ$1,MAX($B$8:$B140)+1,"") -> 129 | C141: 133 | D141: 3ع3 | E141: نعم | F141: نصف داخلي | G141: أنثى | H141: مصطفى | I141: محمود133 | J141: 2003-10-25 | K141: الوادي | L141: منصور133 | M141: أستاذ جامعي | N141: حي السلام | O141: ثالثة ثانويعلوم طبييعية 2 | Q141: أنثى
A142: 236 | B142: =IF($F142=البطاقات!$BJ$1,MAX($B$8:$B141)+1,"") -> 130 | C142: 134 | D142: 3ع3 | E142: نعم | F142: نصف داخلي | G142: أنثى | H142: مصطفى | I142: محمود134 | J142: 2003-10-09 | K142: الوادي | L142: منصور134 | M142: متقاعد | N142: حي الازدهار | O142: ثالثة ثانويعلوم طبييعية 2 | P142: =IF(G142="ذكر","ذكر","") ->  | Q142: أنثى
A143: 237 | B143: =IF($F143=البطاقات!$BJ$1,MAX($B$8:$B142)+1,"") -> 131 | C143: 135 | D143: 3ع3 | E143: لا | F143: نصف داخلي | G143: أنثى | H143: مصطفى | I143: محمود135 | J143: 2003-04-11 | K143: الوادي | L143: منصور135 | M143: متقاعد | N143: حي الازدهار | O143: ثالثة ثانويعلوم طبييعية 2 | Q143: أنثى
A144: 238 | B144: =IF($F144=البطاقات!$BJ$1,MAX($B$8:$B143)+1,"") -> 132 | C144: 136 | D144: 3ع3 | E144: لا | F144: نصف داخلي | G144: ذكر | H144: مصطفى | I144: محمود136 | J144: 2003-02-10 | K144: الوادي | L144: منصور136 | M144: تاجر | N144: حي السلام | O144: ثالثة ثانويعلوم طبييعية 2 | P144: ذكر
A145: 239 | B145: =IF($F145=البطاقات!$BJ$1,MAX($B$8:$B144)+1,"") -> 133 | C145: 137 | D145: 3ع3 | E145: لا | F145: نصف داخلي | G145: ذكر | H145: مصطفى | I145: محمود137 | J145: 2003-01-12 | K145: الوادي | L145: منصور137 | M145: متقاعد | N145: حي 18 فبراير | O145: الثانية ثانوي هندسسة طرائق | P145: ذكر
A146: 243 | B146: =IF($F146=البطاقات!$BJ$1,MAX($B$8:$B145)+1,"") -> 134 | C146: 138 | D146: 3ع3 | E146: لا | F146: نصف داخلي | G146: أنثى | H146: مصطفى | I146: محمود138 | J146: 2003-04-09 | K146: الوادي | L146: منصور138 | M146: عامل يومي | N146: حي الكرامة | O146: الثانية ثانوي هندسسة طرائق | Q146: أنثى
A147: 244 | B147: =IF($F147=البطاقات!$BJ$1,MAX($B$8:$B146)+1,"") -> 135 | C147: 139 | D147: 3ع3 | E147: لا | F147: نصف داخلي | G147: أنثى | H147: مصطفى | I147: محمود139 | J147: 2004-03-26 | K147: الوادي | L147: منصور139 | M147: عامل يومي | N147: حي الكرامة | O147: الثانية ثانوي هندسسة طرائق | Q147: أنثى
A148: 246 | B148: =IF($F148=البطاقات!$BJ$1,MAX($B$8:$B147)+1,"") -> 136 | C148: 140 | D148: 3ع3 | E148: لا | F148: نصف داخلي | G148: أنثى | H148: مصطفى | I148: محمود140 | J148: 2004-11-16 | K148: الوادي | L148: منصور140 | M148: تاجر | N148: حي الازدهار | O148: الثانية ثانوي هندسسة طرائق | Q148: أنثى
A149: 247 | B149: =IF($F149=البطاقات!$BJ$1,MAX($B$8:$B148)+1,"") -> 137 | C149: 141 | D149: 3ع3 | E149: لا | F149: نصف داخلي | G149: ذكر | H149: مصطفى | I149: محمود141 | J149: 2003-10-06 | K149: الوادي | L149: منصور141 | M149: عامل يومي | N149: حي الفتح | O149: الثانية ثانوي هندسسة طرائق | P149: ذكر
A150: 248 | B150: =IF($F150=البطاقات!$BJ$1,MAX($B$8:$B149)+1,"") -> 138 | C150: 142 | D150: 3ع3 | E150: لا | F150: نصف داخلي | G150: ذكر | H150: مصطفى | I150: محمود142 | J150: 2004-06-30 | K150: الوادي | L150: منصور142 | M150: مقاول | N150: حي السلام | O150: الثانية ثانوي هندسسة طرائق | P150: ذكر
A151: 250 | B151: =IF($F151=البطاقات!$BJ$1,MAX($B$8:$B150)+1,"") -> 139 | C151: 143 | D151: 3ع3 | E151: نعم | F151: نصف داخلي | G151: أنثى | H151: مصطفى | I151: محمود143 | J151: 2002-10-08 | K151: الوادي | L151: منصور143 | M151: متقاعد | N151: حي السلام | O151: الثانية ثانوي تسيير وإقتصاد | Q151: أنثى
A152: 251 | B152: =IF($F152=البطاقات!$BJ$1,MAX($B$8:$B151)+1,"") -> 140 | C152: 144 | D152: 3ع3 | E152: لا | F152: نصف داخلي | G152: ذكر | H152: مصطفى | I152: محمود144 | J152: 2003-12-05 | K152: الوادي | L152: منصور144 | M152: متقاعد | N152: حي السلام | O152: الثانية ثانوي تسيير وإقتصاد | P152: ذكر
A153: 252 | B153: =IF($F153=البطاقات!$BJ$1,MAX($B$8:$B152)+1,"") -> 141 | C153: 145 | D153: 3ع3 | E153: نعم | F153: نصف داخلي | G153: أنثى | H153: مصطفى | I153: محمود145 | J153: 2003-12-10 | K153: الوادي | L153: منصور145 | M153: تاجر | N153: حي السلام | O153: 2ع1 | Q153: أنثى
A154: 254 | B154: =IF($F154=البطاقات!$BJ$1,MAX($B$8:$B153)+1,"") -> 142 | C154: 146 | D154: 3ع3 | E154: لا | F154: نصف داخلي | G154: أنثى | H154: مصطفى | I154: محمود146 | J154: 2002-01-04 | K154: الوادي | L154: منصور146 | M154: عامل يومي | N154: حي الكرامة | O154: 2ع1 | Q154: أنثى
A155: 255 | B155: =IF($F155=البطاقات!$BJ$1,MAX($B$8:$B154)+1,"") -> 143 | C155: 147 | D155: 3ع3 | E155: لا | F155: نصف داخلي | G155: أنثى | H155: مصطفى | I155: محمود147 | J155: 2004-04-13 | K155: الوادي | L155: منصور147 | M155: موظف | N155: حي 01 نوفمبر | O155: 2ع1 | Q155: أنثى
A156: 256 | B156: =IF($F156=البطاقات!$BJ$1,MAX($B$8:$B155)+1,"") -> 144 | C156: 148 | D156: 3ع3 | E156: لا | F156: نصف داخلي | G156: ذكر | H156: مصطفى | I156: محمود148 | J156: 2004-08-04 | K156: الوادي | L156: منصور148 | M156: تاجر | N156: حي الازدهار | O156: 2ع1 | P156: ذكر
A157: 257 | B157: =IF($F157=البطاقات!$BJ$1,MAX($B$8:$B156)+1,"") -> 145 | C157: 149 | D157: 3ع3 | E157: لا | F157: نصف داخلي | G157: ذكر | H157: مصطفى | I157: محمود149 | J157: 2004-02-21 | K157: الوادي | L157: منصور149 | M157: بطال | N157: حي الكوثر | O157: 2ع1 | P157: ذكر
A158: 258 | B158: =IF($F158=البطاقات!$BJ$1,MAX($B$8:$B157)+1,"") -> 146 | C158: 150 | D158: 3ع3 | E158: لا | F158: نصف داخلي | G158: ذكر | H158: مصطفى | I158: محمود150 | J158: 2004-10-21 | K158: الوادي | L158: منصور150 | M158: ممرض | N158: حي الكرامة | O158: 2ع1 | P158: ذكر
A159: 259 | B159: =IF($F159=البطاقات!$BJ$1,MAX($B$8:$B158)+1,"") -> 147 | C159: 151 | D159: 3ع3 | E159: لا | F159: نصف داخلي | G159: أنثى | H159: مصطفى | I159: محمود151 | J159: 2004-12-02 | K159: الوادي | L159: منصور151 | M159: موظف | N159: حي السلام | O159: 2ع1 | Q159: أنثى
A160: 260 | B160: =IF($F160=البطاقات!$BJ$1,MAX($B$8:$B159)+1,"") -> 148 | C160: 152 | D160: 3ع3 | E160: لا | F160: نصف داخلي | G160: ذكر | H160: مصطفى | I160: محمود152 | J160: 2005-05-18 | K160: الوادي | L160: منصور152 | M160: متقاعد | N160: حي الكوثر | O160: 2ع1 | P160: ذكر
A161: 263 | B161: =IF($F161=البطاقات!$BJ$1,MAX($B$8:$B160)+1,"") -> 149 | C161: 153 | D161: 3ع3 | E161: لا | F161: نصف داخلي | G161: ذكر | H161: مصطفى | I161: محمود153 | J161: 2004-06-20 | K161: الوادي | L161: منصور153 | M161: موظف | N161: حي الازدهار | O161: 2ع1 | P161: ذكر
A162: 264 | B162: =IF($F162=البطاقات!$BJ$1,MAX($B$8:$B161)+1,"") -> 150 | C162: 154 | D162: 3ع3 | E162: لا | F162: نصف داخلي | G162: ذكر | H162: مصطفى | I162: محمود154 | J162: 2003-12-04 | K162: الوادي | L162: منصور154 | M162: عامل يومي | N162: حي 01 نوفمبر | O162: 2ع1 | P162: ذكر
A163: 265 | B163: =IF($F163=البطاقات!$BJ$1,MAX($B$8:$B162)+1,"") -> 151 | C163: 155 | D163: 3ع3 | E163: لا | F163: نصف داخلي | G163: أنثى | H163: مصطفى | I163: محمود155 | J163: 2000-08-16 | K163: الوادي | L163: منصور155 | M163: عامل يومي | N163: حي السلام | O163: 2ع2 | Q163: أنثى
A164: 266 | B164: =IF($F164=البطاقات!$BJ$1,MAX($B$8:$B163)+1,"") -> 152 | C164: 156 | D164: 3ع3 | E164: لا | F164: نصف داخلي | G164: أنثى | H164: مصطفى | I164: محمود156 | J164: 2004-01-27 | K164: الوادي | L164: منصور156 | M164: حداد | N164: حي الازدهار | O164: 2ع2 | Q164: أنثى
A165: 267 | B165: =IF($F165=البطاقات!$BJ$1,MAX($B$8:$B164)+1,"") -> 153 | C165: 157 | D165: 3آف1 | E165: لا | F165: نصف داخلي | G165: أنثى | H165: مصطفى | I165: محمود157 | J165: 2002-08-25 | K165: الوادي | L165: منصور157 | M165: عامل يومي | N165: حي 18 فبراير | O165: 2ع2 | Q165: أنثى
A166: 268 | B166: =IF($F166=البطاقات!$BJ$1,MAX($B$8:$B165)+1,"") ->  | C166: 158 | E166: نعم | F166: شطب | G166: أنثى | H166: مصطفى | I166: محمود158 | J166: 2002-08-15 | K166: الوادي | L166: منصور158 | M166: متقاعد | N166: حي الكرامة | O166: 2ع2 | Q166: أنثى
A167: 269 | B167: =IF($F167=البطاقات!$BJ$1,MAX($B$8:$B166)+1,"") -> 154 | C167: 159 | D167: 3آف2 | E167: لا | F167: نصف داخلي | G167: أنثى | H167: مصطفى | I167: محمود159 | J167: 2002-06-21 | K167: الوادي | L167: منصور159 | M167: موظف | N167: حي 18 فبراير | O167: 2ع2 | Q167: أنثى
A168: 270 | B168: =IF($F168=البطاقات!$BJ$1,MAX($B$8:$B167)+1,"") -> 155 | C168: 160 | D168: 3آف1 | E168: لا | F168: نصف داخلي | G168: أنثى | H168: مصطفى | I168: محمود160 | J168: 2004-05-27 | K168: الوادي | L168: منصور160 | M168: عامل يومي | N168: حي الكرامة | O168: 2ع2 | Q168: أنثى
A169: 271 | B169: =IF($F169=البطاقات!$BJ$1,MAX($B$8:$B168)+1,"") -> 156 | C169: 161 | D169: 3آف1 | E169: نعم | F169: نصف داخلي | G169: أنثى | H169: مصطفى | I169: محمود161 | J169: 2003-01-21 | K169: الوادي | L169: منصور161 | M169: متقاعد | N169: حي الكرامة | O169: 2آف | Q169: أنثى
A170: 273 | B170: =IF($F170=البطاقات!$BJ$1,MAX($B$8:$B169)+1,"") -> 157 | C170: 162 | D170: 3آف1 | E170: نعم | F170: نصف داخلي | G170: أنثى | H170: مصطفى | I170: محمود162 | J170: 2003-03-28 | K170: الوادي | L170: منصور162 | M170: موظف | N170: حي الازدهار | O170: 1ج م ع 1 | Q170: أنثى
A171: 275 | B171: =IF($F171=البطاقات!$BJ$1,MAX($B$8:$B170)+1,"") -> 158 | C171: 163 | D171: 3آف1 | E171: لا | F171: نصف داخلي | G171: أنثى | H171: مصطفى | I171: محمود163 | J171: 2004-04-21 | K171: الوادي | L171: منصور163 | M171: سائق | N171: حي السلام | O171: 1ج م ع 1 | Q171: أنثى
A172: 276 | B172: =IF($F172=البطاقات!$BJ$1,MAX($B$8:$B171)+1,"") ->  | C172: 164 | E172: نعم | F172: شطب | G172: أنثى | H172: مصطفى | I172: محمود164 | J172: 2002-02-16 | K172: الوادي | L172: منصور164 | M172: عامل يومي | N172: حي الكرامة | O172: 1ج م ع 1 | Q172: أنثى
A173: 278 | B173: =IF($F173=البطاقات!$BJ$1,MAX($B$8:$B172)+1,"") -> 159 | C173: 165 | D173: 3آف1 | E173: نعم | F173: نصف داخلي | G173: أنثى | H173: مصطفى | I173: محمود165 | J173: 2003-10-14 | K173: الوادي | L173: منصور165 | M173: عامل يومي | N173: حي النور | O173: 1ج م ع 2 | Q173: أنثى
A174: 280 | B174: =IF($F174=البطاقات!$BJ$1,MAX($B$8:$B173)+1,"") -> 160 | C174: 166 | D174: 3آف1 | E174: لا | F174: نصف داخلي | G174: أنثى | H174: مصطفى | I174: محمود166 | J174: 2003-07-04 | K174: الوادي | L174: منصور166 | M174: متقاعد | N174: حي الكوثر | O174: 1ج م ع 2 | Q174: أنثى
A175: 282 | B175: =IF($F175=البطاقات!$BJ$1,MAX($B$8:$B174)+1,"") -> 161 | C175: 167 | D175: 3آف1 | E175: لا | F175: نصف داخلي | G175: أنثى | H175: مصطفى | I175: محمود167 | J175: 2002-11-12 | K175: الوادي | L175: منصور167 | M175: متقاعد | N175: حي الكوثر | O175: 1ج م ع 2 | Q175: أنثى
A176: 283 | B176: =IF($F176=البطاقات!$BJ$1,MAX($B$8:$B175)+1,"") -> 162 | C176: 168 | D176: 3آف1 | E176: لا | F176: نصف داخلي | G176: أنثى | H176: مصطفى | I176: محمود168 | J176: 2004-12-09 | K176: الوادي | L176: منصور168 | M176: عامل يومي | N176: حي الكوثر | O176: 1ج م ع 2 | Q176: أنثى
A177: 284 | B177: =IF($F177=البطاقات!$BJ$1,MAX($B$8:$B176)+1,"") -> 163 | C177: 169 | D177: 3آف2 | E177: لا | F177: نصف داخلي | G177: أنثى | H177: مصطفى | I177: محمود169 | J177: 2003-03-05 | K177: الوادي | L177: منصور169 | M177: موظف | N177: حي الازدهار | O177: 1ج م ع ت2 | Q177: أنثى
A178: 285 | B178: =IF($F178=البطاقات!$BJ$1,MAX($B$8:$B177)+1,"") -> 164 | C178: 170 | D178: 3آف2 | E178: نعم | F178: نصف داخلي | G178: ذكر | H178: مصطفى | I178: محمود170 | J178: 2003-04-10 | K178: الوادي | L178: منصور170 | M178: عامل يومي | N178: حي الصومام | O178: 1ج م ع ت2 | P178: ذكر
A179: 287 | B179: =IF($F179=البطاقات!$BJ$1,MAX($B$8:$B178)+1,"") -> 165 | C179: 171 | D179: 3آف2 | E179: لا | F179: نصف داخلي | G179: أنثى | H179: مصطفى | I179: محمود171 | J179: 2004-02-21 | K179: الوادي | L179: منصور171 | M179: موظف | N179: حي السلام | O179: 1ج م ع ت2 | Q179: أنثى
A180: 288 | B180: =IF($F180=البطاقات!$BJ$1,MAX($B$8:$B179)+1,"") -> 166 | C180: 172 | D180: 3آف2 | E180: لا | F180: نصف داخلي | G180: ذكر | H180: مصطفى | I180: محمود172 | J180: 2003-08-05 | K180: الوادي | L180: منصور172 | M180: متوفي | N180: حي 08 ماي | O180: 1ج م ع ت3 | P180: ذكر
A181: 290 | B181: =IF($F181=البطاقات!$BJ$1,MAX($B$8:$B180)+1,"") -> 167 | C181: 173 | D181: 3آف2 | E181: لا | F181: نصف داخلي | G181: أنثى | H181: مصطفى | I181: محمود173 | J181: 2002-08-01 | K181: الوادي | L181: منصور173 | M181: بطال | N181: حي بن باديس | O181: 1ج م ع ت3 | Q181: أنثى
A182: 291 | B182: =IF($F182=البطاقات!$BJ$1,MAX($B$8:$B181)+1,"") -> 168 | C182: 174 | D182: 3آف2 | E182: نعم | F182: نصف داخلي | G182: أنثى | H182: مصطفى | I182: محمود174 | J182: 2002-12-10 | K182: الوادي | L182: منصور174 | M182: عامل يومي | N182: حي الفتح | O182: 1ج م ع ت3 | Q182: أنثى
A183: 292 | B183: =IF($F183=البطاقات!$BJ$1,MAX($B$8:$B182)+1,"") -> 169 | C183: 175 | D183: 3آف2 | E183: لا | F183: نصف داخلي | G183: ذكر | H183: مصطفى | I183: محمود175 | J183: 2003-10-30 | K183: الوادي | L183: منصور175 | M183: متقاعد | N183: حي الفتح | O183: 1ج م ع ت3 | P183: ذكر
A184: 293 | B184: =IF($F184=البطاقات!$BJ$1,MAX($B$8:$B183)+1,"") -> 170 | C184: 176 | D184: 3آف2 | E184: لا | F184: نصف داخلي | G184: أنثى | H184: مصطفى | I184: محمود176 | J184: 2002-08-16 | K184: الوادي | L184: منصور176 | M184: عامل يومي | N184: حي الفتح | O184: 1ج م ع ت3 | Q184: أنثى
A185: 294 | B185: =IF($F185=البطاقات!$BJ$1,MAX($B$8:$B184)+1,"") -> 171 | C185: 177 | D185: 3آف2 | E185: لا | F185: نصف داخلي | G185: أنثى | H185: مصطفى | I185: محمود177 | J185: 2003-01-04 | K185: الوادي | L185: منصور177 | M185: متقاعد | N185: حي 18 فبراير | O185: 1ج م ع ت3 | Q185: أنثى
A186: 296 | B186: =IF($F186=البطاقات!$BJ$1,MAX($B$8:$B185)+1,"") -> 172 | C186: 178 | D186: 3آف2 | E186: لا | F186: نصف داخلي | G186: أنثى | H186: مصطفى | I186: محمود178 | J186: 2004-02-10 | K186: الوادي | L186: منصور178 | M186: عامل يومي | N186: حي 18 فبراير | O186: 1ج م ع ت3 | Q186: أنثى
A187: 297 | B187: =IF($F187=البطاقات!$BJ$1,MAX($B$8:$B186)+1,"") -> 173 | C187: 179 | D187: 3آف2 | E187: نعم | F187: نصف داخلي | G187: ذكر | H187: مصطفى | I187: محمود179 | J187: 2003-11-18 | K187: الوادي | L187: منصور179 | M187: مفتش | N187: حي 18 فبراير | O187: 1ج م ع ت3 | P187: ذكر
A188: 298 | B188: =IF($F188=البطاقات!$BJ$1,MAX($B$8:$B187)+1,"") -> 174 | C188: 180 | D188: 3آف2 | E188: لا | F188: نصف داخلي | G188: أنثى | H188: مصطفى | I188: محمود180 | J188: 2004-10-07 | K188: الوادي | L188: منصور180 | M188: عامل يومي | N188: حي الأمير ع القادر | O188: 1ج م ع ت3 | Q188: أنثى
A189: 299 | B189: =IF($F189=البطاقات!$BJ$1,MAX($B$8:$B188)+1,"") -> 175 | C189: 181 | D189: 3آف1 | E189: نعم | F189: نصف داخلي | G189: أنثى | H189: مصطفى | I189: محمود181 | J189: 2003-02-12 | K189: الوادي | L189: منصور181 | M189: طبيب | N189: حي الازدهار | O189: 1ج م ع ت4 | Q189: أنثى
A190: 300 | B190: =IF($F190=البطاقات!$BJ$1,MAX($B$8:$B189)+1,"") -> 176 | C190: 182 | D190: 3آف1 | E190: لا | F190: نصف داخلي | G190: أنثى | H190: مصطفى | I190: محمود182 | J190: 2003-04-21 | K190: الوادي | L190: منصور182 | M190: مقاول | N190: حي الفتح | O190: 1ج م ع ت4 | Q190: أنثى
A191: 301 | B191: =IF($F191=البطاقات!$BJ$1,MAX($B$8:$B190)+1,"") -> 177 | C191: 183 | D191: 3آف1 | E191: لا | F191: نصف داخلي | G191: أنثى | H191: مصطفى | I191: محمود183 | J191: 2004-11-04 | K191: الوادي | L191: منصور183 | M191: عامل يومي | N191: حي الفتح | O191: 1ج م ع ت4 | Q191: أنثى
A192: 302 | B192: =IF($F192=البطاقات!$BJ$1,MAX($B$8:$B191)+1,"") -> 178 | C192: 184 | D192: 3آف2 | E192: لا | F192: نصف داخلي | G192: أنثى | H192: مصطفى | I192: محمود184 | J192: 2003-10-30 | K192: الوادي | L192: منصور184 | M192: عامل يومي | N192: حي الكوثر | O192: 1ج م ع ت4 | Q192: أنثى
A193: 303 | B193: =IF($F193=البطاقات!$BJ$1,MAX($B$8:$B192)+1,"") -> 179 | C193: 185 | D193: 3آف1 | E193: لا | F193: نصف داخلي | G193: أنثى | H193: مصطفى | I193: محمود185 | J193: 2004-11-07 | K193: الوادي | L193: منصور185 | M193: فلاح | N193: حي الكرامة | O193: 1ج م ع ت4 | Q193: أنثى
A194: 304 | B194: =IF($F194=البطاقات!$BJ$1,MAX($B$8:$B193)+1,"") -> 180 | C194: 186 | D194: 3آف1 | E194: لا | F194: نصف داخلي | G194: أنثى | H194: مصطفى | I194: محمود186 | J194: 2005-01-01 | K194: الوادي | L194: منصور186 | M194: موظف | N194: حي الكرامة | O194: 1ج م ع ت4 | Q194: أنثى
A195: 305 | B195: =IF($F195=البطاقات!$BJ$1,MAX($B$8:$B194)+1,"") -> 181 | C195: 187 | D195: 3آف2 | E195: لا | F195: نصف داخلي | G195: أنثى | H195: مصطفى | I195: محمود187 | J195: 2005-01-02 | K195: الوادي | L195: منصور187 | M195: تاجر | N195: حي الازدهار | O195: 1ج م ع ت4 | Q195: أنثى
A196: 307 | B196: =IF($F196=البطاقات!$BJ$1,MAX($B$8:$B195)+1,"") -> 182 | C196: 188 | D196: 3آف2 | E196: نعم | F196: نصف داخلي | G196: أنثى | H196: مصطفى | I196: محمود188 | J196: 2002-01-21 | K196: الوادي | L196: منصور188 | M196: عامل يومي | N196: حي الكوثر | O196: 1ج م ع ت4 | Q196: أنثى
A197: 308 | B197: =IF($F197=البطاقات!$BJ$1,MAX($B$8:$B196)+1,"") -> 183 | C197: 189 | D197: 3آف1 | E197: لا | F197: نصف داخلي | G197: ذكر | H197: مصطفى | I197: محمود189 | J197: 2002-01-03 | K197: الوادي | L197: منصور189 | M197: عامل يومي | N197: حي السلام | O197: 1ج م ع ت4 | P197: ذكر
A198: 309 | B198: =IF($F198=البطاقات!$BJ$1,MAX($B$8:$B197)+1,"") -> 184 | C198: 190 | D198: 3آف1 | E198: لا | F198: نصف داخلي | G198: أنثى | H198: مصطفى | I198: محمود190 | J198: 2004-01-04 | K198: الوادي | L198: منصور190 | M198: سائق | N198: حي 18 فبراير | O198: 1ج م ع ت5 | Q198: أنثى
A199: 311 | B199: =IF($F199=البطاقات!$BJ$1,MAX($B$8:$B198)+1,"") -> 185 | C199: 191 | D199: 3آف1 | E199: لا | F199: نصف داخلي | G199: ذكر | H199: مصطفى | I199: محمود191 | J199: 2002-11-24 | K199: الوادي | L199: منصور191 | M199: عامل يومي | N199: حي 01 نوفمبر | O199: 1ج م ع ت5 | P199: ذكر
A200: 313 | B200: =IF($F200=البطاقات!$BJ$1,MAX($B$8:$B199)+1,"") -> 186 | C200: 192 | D200: 2هط | E200: لا | F200: نصف داخلي | G200: أنثى | H200: مصطفى | I200: محمود192 | J200: 2004-05-17 | K200: الوادي | L200: منصور192 | M200: مقاول | N200: حي الكوثر | O200: 1ج م ع ت5 | Q200: أنثى
... 510 more rows
